{"text_format":"1","workbook":"xlsx","n_sheets":6,"sheets":["様式-2","様式-7","様式-16","現状記録写真","MASTER","HiddenSheet_様式-2"],"not_rendered":{"charts":0,"images":96,"macros":1,"external_links":0,"defined_names":30,"comments":0,"pivot_tables":0},"unopened":[],"bounds":{"document_bytes":16777216,"sheet_cells":100000,"rows_first":2000,"rows_last":500,"rows_between":2000,"halvings":0,"cell_chars":16384,"cell_head_chars":4096},"cells_cut":0,"cells_raw":0,"read":"whole","date_system":"1900"}

{"sheet":"様式-2","index":0,"n_rows":44,"n_cols":94,"rows_kept":44,"cut":false,"hidden":false,"merged":[[5,10,5,16],[4,1,4,5],[4,14,4,18],[4,19,4,24],[4,25,4,27],[5,25,5,27],[6,1,6,8],[5,1,5,3],[5,4,5,6],[5,7,5,9],[5,17,5,21],[32,5,32,49],[6,36,6,39],[6,40,6,41],[32,57,32,58],[6,9,6,12],[6,13,6,17],[6,34,6,35],[6,42,6,44],[6,18,6,21],[7,1,7,49],[32,1,32,4],[6,31,6,33],[8,2,30,48],[8,51,30,89],[32,50,32,56],[6,66,6,69],[6,77,6,79],[6,80,6,85],[6,70,6,73],[4,28,4,51],[5,22,5,24],[6,27,6,30],[6,62,6,65],[6,52,6,54],[6,55,6,57],[6,22,6,24],[6,25,6,26],[6,58,6,61],[4,52,4,55],[5,62,5,63],[5,60,5,61],[5,65,5,66],[5,45,5,47],[4,65,4,66],[5,28,5,44],[33,12,33,13],[33,15,33,17],[34,1,34,4],[33,22,33,49],[33,9,33,10],[35,1,35,4],[34,11,34,16],[34,17,34,22],[33,5,33,7],[39,77,39,90],[40,77,40,90],[41,77,41,90],[42,77,42,90],[36,70,36,71],[36,68,36,69],[36,1,36,4],[33,1,33,4],[37,1,43,4],[34,23,34,49],[36,62,36,63],[41,57,41,59],[40,57,40,59],[35,5,43,49],[35,57,35,58],[35,53,35,56],[36,60,36,61],[39,57,39,59],[39,60,39,67],[43,66,43,90],[34,50,34,56],[33,50,33,56],[34,5,34,10],[33,19,33,20],[43,63,43,65],[36,72,36,75],[40,68,40,73],[37,60,37,67],[39,74,39,76],[40,60,40,67],[41,60,41,67],[42,57,42,59],[37,57,37,59],[38,57,38,59],[36,57,36,58],[42,68,42,73],[42,60,42,67],[43,50,43,62],[42,74,42,76],[41,68,41,73],[39,68,39,73],[38,60,38,67],[37,68,37,73],[38,68,38,73],[38,77,38,90],[40,74,40,76],[41,74,41,76],[38,74,38,76],[37,74,37,76],[1,67,2,75],[3,82,3,83],[1,27,2,63],[5,48,5,59],[6,48,6,51],[7,50,7,90],[1,76,1,90],[2,76,2,90],[3,88,3,90],[4,89,4,90],[5,85,5,90],[6,86,6,90],[5,79,5,80],[5,68,5,69],[5,82,5,84],[6,45,6,47],[3,84,3,85],[4,85,4,88],[4,80,4,82],[36,87,36,90],[3,67,3,75],[4,83,4,84],[3,80,3,81],[3,78,3,79],[3,76,3,77],[3,86,3,87],[5,76,5,77],[6,74,6,76],[32,85,32,90],[5,73,5,74],[5,71,5,72],[4,76,4,79],[35,50,35,52],[36,50,36,52],[37,50,39,56],[40,50,42,56],[34,57,34,62],[36,65,36,67],[35,87,35,90],[36,76,36,86],[32,68,32,83],[34,63,34,70],[32,60,32,66],[33,57,33,62],[34,72,34,79],[33,89,33,90],[34,89,34,90],[36,53,36,56],[35,83,35,85],[35,60,35,61],[37,77,37,90],[35,62,35,63],[35,64,35,67],[34,81,34,88],[35,79,35,81],[35,68,35,78]]}
[]
[null,null,null,null,null,null,null,null,null,null,null,null,null,null,null,null,null,null,null,null,null,null,null,null,null,null,null,"様式－２　　箇所別記録表（落石・崩壊）",null,null,null,null,null,null,null,null,null,null,null,null,null,null,null,null,null,null,null,null,null,null,null,null,null,null,null,null,null,null,null,null,null,null,null,null,null,null,null,"管理機関名",null,null,null,null,null,null,null,null,"大阪府"]
[]
[null,null,null,null,null,null,null,null,null,null,null,null,null,null,null,null,null,null,null,null,null,null,null,null,null,null,null,null,null,null,null,null,null,null,null,null,null,null,null,null,null,null,null,null,null,null,null,null,null,null,null,null,null,null,null,null,null,null,null,null,null,null,null,null,null,null,null,"管理機関コード",null,null,null,null,null,null,null,null,2,null,7,null,null,null,null,null,null,null,null,null,null,null,null,null,"※消さないでください"]
[null,"施設管理番号",null,null,null,null,null,null,null,null,{"$f":"IF(ISERROR(MATCH(T5,LIST_点検対象項目,0))=TRUE,\"\",INDEX(MASTER!AC3:AC60000,MATCH(T5,LIST_点検対象項目,0)))","v":"A"},null,null,null,"点検対象項目",null,null,null,null,"落石・崩壊",null,null,null,null,null,"路線名",null,null,null,null,null,null,null,null,null,null,null,null,null,null,null,null,null,null,null,null,null,null,null,null,null,null,"距離標（自）",null,null,null,null,null,null,null,null,null,null,null,null,"(至)",null,null,null,null,null,null,null,null,null,null,"上下線の別",null,null,null,null,null,null,"延長",null,null,null,null,null,"m",null,null,"路線ID",{"$f":"IF(ISERROR(MATCH(AC5,MASTER_TB_CO_ROUTE,0))=TRUE,\"\",INDEX(MASTER!#REF!,MATCH(AC5,MASTER_TB_CO_ROUTE,0)))","v":""}]
[null,"事業区分",null,null,null,null,null,"道路種別",null,null,{"$f":"IFERROR(VLOOKUP(AC5,TABLE_MASTER_CO_ROUTE,4,FALSE),\"\")","v":""},null,null,null,null,null,null,"現道・旧道路区分",null,null,null,null,{"$f":"IFERROR(VLOOKUP(AC5,TABLE_MASTER_CO_ROUTE,7,FALSE),\"\")","v":""},null,null,"所在地",null,null,null,null,null,null,null,null,null,null,null,null,null,null,null,null,null,null,null,"位置目印",null,null,null,null,null,null,null,null,null,null,null,null,null,null,"北緯",null,null,null,"度",null,null,"分",null,null,"秒","東経",null,null,null,"度",null,null,"分",null,null,"秒","測地系"]
[null,"事前通行規制区間指定",null,null,null,null,null,null,null,null,null,null,null,"規制基準等",null,null,null,null,"連続雨量",null,null,null,null,null,null,"mm",null,"時間雨量",null,null,null,null,null,null,"mm",null,"交通量",null,null,null,"平日",null,null,null,null,"台/12h",null,null,"休日",null,null,null,null,null,null,"台/12h",null,null,"ＤＩＤ区間",null,null,null,null,null,null,null,"バス路線",null,null,null,null,null,null,null,"迂回路",null,null,null,null,null,"緊急輸送道路区分"]
[null,"スケッチ・現況写真（既設対策工、位置目印との位置関係が分かるもの）",null,null,null,null,null,null,null,null,null,null,null,null,null,null,null,null,null,null,null,null,null,null,null,null,null,null,null,null,null,null,null,null,null,null,null,null,null,null,null,null,null,null,null,null,null,null,null,null,"位　置　図"]
[]
[]
[]
[]
[]
[]
[]
[]
[]
[]
[]
[]
[]
[]
[]
[]
[]
[]
[]
[]
[]
[]
[]
[]
[null,"特記事項",null,null,null,null,null,null,null,null,null,null,null,null,null,null,null,null,null,null,null,null,null,null,null,null,null,null,null,null,null,null,null,null,null,null,null,null,null,null,null,null,null,null,null,null,null,null,null,null,"被災履歴",null,null,null,null,null,null,null,null,"（",null,null,null,null,null,null,null,null,null,null,null,null,null,null,null,null,null,null,null,null,null,null,null,null,"）","（H8年度以降）"]
[null,"点検実施",null,null,null,"H",null,null,"年",null,null,"月",null,null,"日","天候：",null,null,"（",null,null,"）",null,null,null,null,null,null,null,null,null,null,null,null,null,null,null,null,null,null,null,null,null,null,null,null,null,null,null,null,"重複点検対象項目",null,null,null,null,null,null,"対応施設管理番号：",null,null,null,null,null,null,null,null,null,{"$f":"IF(ISERROR(MATCH(BL35,LIST_点検対象項目,0))=TRUE,\"\",INDEX(MASTER!AC3:AC60000,MATCH(BL35,LIST_点検対象項目,0)))","v":""},null,null,null,null,null,null,null,null,{"$f":"IF(ISERROR(MATCH(BU35,LIST_点検対象項目,0))=TRUE,\"\",INDEX(MASTER!AC3:AC60000,MATCH(BU35,LIST_点検対象項目,0)))","v":""},null,null,null,null,null,null,null,null,{"$f":"IF(ISERROR(MATCH(CD35,LIST_点検対象項目,0))=TRUE,\"\",INDEX(MASTER!AC3:AC60000,MATCH(CD35,LIST_点検対象項目,0)))","v":""}]
[null,"調査方法"]
[null,"所見",null,null,null,null,null,null,null,null,null,null,null,null,null,null,null,null,null,null,null,null,null,null,null,null,null,null,null,null,null,null,null,null,null,null,null,null,null,null,null,null,null,null,null,null,null,null,null,null,"H",null,null,"年度点検結果",null,null,null,"評点",null,"（",null,null,"点）",null,"総合評価：",null,null,null,null,null,null,null,null,null,null,null,null,null,null,"／対応：",null,null,"（",null,null,null,"）"]
[null,"（評価理由）",null,null,null,null,null,null,null,null,null,null,null,null,null,null,null,null,null,null,null,null,null,null,null,null,null,null,null,null,null,null,null,null,null,null,null,null,null,null,null,null,null,null,null,null,null,null,null,null,"H",null,null,"年度点検結果",null,null,null,"評点",null,"（","のり面",null,null,null,"点","自然斜面",null,null,null,null,"点）",null,"総合評価：",null,null,null,"特に新たな対応を必要としない"]
[null,null,null,null,null,null,null,null,null,null,null,null,null,null,null,null,null,null,null,null,null,null,null,null,null,null,null,null,null,null,null,null,null,null,null,null,null,null,null,null,null,null,null,null,null,null,null,null,null,null,"予想災害規模",null,null,null,null,null,null,"現象1：",null,null,null,null,null,null,null,null,null,null,null,null,null,null,null,null,"規模1："]
[null,null,null,null,null,null,null,null,null,null,null,null,null,null,null,null,null,null,null,null,null,null,null,null,null,null,null,null,null,null,null,null,null,null,null,null,null,null,null,null,null,null,null,null,null,null,null,null,null,null,null,null,null,null,null,null,null,"現象2：",null,null,null,null,null,null,null,null,null,null,null,null,null,null,null,null,"規模2："]
[null,null,null,null,null,null,null,null,null,null,null,null,null,null,null,null,null,null,null,null,null,null,null,null,null,null,null,null,null,null,null,null,null,null,null,null,null,null,null,null,null,null,null,null,null,null,null,null,null,null,null,null,null,null,null,null,null,"現象3：",null,null,null,null,null,null,null,null,null,null,null,null,null,null,null,null,"規模3："]
[null,null,null,null,null,null,null,null,null,null,null,null,null,null,null,null,null,null,null,null,null,null,null,null,null,null,null,null,null,null,null,null,null,null,null,null,null,null,null,null,null,null,null,null,null,null,null,null,null,null,"想定対策工",null,null,null,null,null,null,"工種1：",null,null,null,null,null,null,null,null,null,null,null,null,null,null,null,null,"その他1："]
[null,null,null,null,null,null,null,null,null,null,null,null,null,null,null,null,null,null,null,null,null,null,null,null,null,null,null,null,null,null,null,null,null,null,null,null,null,null,null,null,null,null,null,null,null,null,null,null,null,null,null,null,null,null,null,null,null,"工種2：",null,null,null,null,null,null,null,null,null,null,null,null,null,null,null,null,"その他2："]
[null,null,null,null,null,null,null,null,null,null,null,null,null,null,null,null,null,null,null,null,null,null,null,null,null,null,null,null,null,null,null,null,null,null,null,null,null,null,null,null,null,null,null,null,null,null,null,null,null,null,null,null,null,null,null,null,null,"工種3：",null,null,null,null,null,null,null,null,null,null,null,null,null,null,null,null,"その他3："]
[null,null,null,null,null,null,null,null,null,null,null,null,null,null,null,null,null,null,null,null,null,null,null,null,null,null,null,null,null,null,null,null,null,null,null,null,null,null,null,null,null,null,null,null,null,null,null,null,null,null,"地震時の安定性（　落石　・　崩壊のみ　）：",null,null,null,null,null,null,null,null,null,null,null,null,"-"]

{"sheet":"様式-7","index":1,"n_rows":54,"n_cols":87,"rows_kept":54,"cut":false,"hidden":false,"merged":[[1,70,1,76],[1,77,1,88],[2,70,2,76],[2,77,2,88],[4,18,4,31],[4,32,4,45],[5,18,5,26],[5,27,5,28],[5,29,5,31],[5,32,5,40],[5,41,5,42],[5,43,5,45],[1,16,1,17],[1,18,1,19],[1,20,1,21],[1,23,1,26],[1,27,1,28],[1,29,1,30],[1,32,2,61],[1,1,1,5],[1,6,1,7],[1,8,1,9],[1,10,1,11],[1,12,1,13],[1,14,1,15],[6,1,12,1],[6,2,12,3],[6,4,6,17],[4,1,5,3],[4,4,5,17],[6,18,7,26],[6,27,7,28],[6,41,6,42],[6,43,11,45],[7,4,7,17],[7,32,7,40],[7,41,7,42],[10,4,10,17],[10,18,10,26],[10,27,10,28],[10,32,10,40],[11,4,11,17],[11,18,11,26],[11,27,11,28],[11,32,11,40],[11,41,11,42],[8,69,10,73],[8,74,8,77],[8,78,8,81],[9,4,9,17],[9,18,9,26],[9,27,9,28],[9,32,9,40],[9,41,9,42],[9,50,9,68],[9,74,10,77],[9,78,10,81],[10,41,10,42],[10,50,10,68],[11,50,11,68],[6,29,11,31],[7,50,7,68],[6,32,6,40],[11,69,13,73],[11,74,13,77],[11,78,13,81],[12,4,12,17],[12,18,12,26],[12,27,12,28],[12,29,12,31],[12,32,12,40],[12,41,12,42],[12,43,12,45],[12,50,12,68],[13,50,13,68],[7,69,7,73],[7,74,7,81],[8,4,8,17],[8,18,8,26],[8,27,8,28],[8,32,8,40],[8,41,8,42],[8,50,8,68],[13,1,23,1],[13,2,15,3],[13,5,13,16],[13,18,13,26],[13,27,13,28],[13,29,14,31],[13,32,13,40],[13,41,13,42],[13,43,14,45],[14,5,14,16],[14,18,14,26],[14,27,14,28],[14,32,14,40],[14,41,14,42],[16,2,18,3],[17,41,17,42],[19,2,23,3],[19,5,19,16],[19,18,19,26],[19,27,19,28],[19,29,22,31],[19,32,19,40],[19,41,19,42],[19,43,22,45],[14,50,14,68],[14,69,16,73],[14,74,16,77],[14,78,16,81],[15,5,15,16],[15,18,15,26],[15,27,15,28],[15,29,15,31],[15,32,15,40],[15,41,15,42],[15,43,15,45],[15,50,15,68],[16,5,16,16],[16,18,16,26],[16,27,16,28],[16,29,17,31],[16,32,16,40],[16,41,16,42],[16,43,17,45],[16,50,16,68],[17,5,17,16],[17,18,17,26],[17,27,17,28],[17,32,17,40],[17,50,17,68],[17,69,18,73],[17,74,18,77],[17,78,18,81],[18,5,18,16],[18,18,18,26],[18,27,18,28],[18,29,18,31],[18,32,18,40],[18,41,18,42],[18,43,18,45],[18,50,18,68],[19,69,21,73],[19,74,19,77],[19,78,19,81],[20,5,20,16],[20,18,20,26],[20,27,20,28],[20,32,20,40],[20,41,20,42],[20,75,21,76],[20,79,21,80],[21,18,21,26],[21,27,21,28],[21,32,21,40],[21,41,21,42],[22,5,22,16],[22,18,22,26],[22,27,22,28],[22,32,22,40],[22,41,22,42],[21,5,21,16],[23,5,23,16],[23,18,23,26],[23,27,23,28],[23,29,23,31],[23,32,23,40],[25,69,25,70],[23,43,23,45],[24,1,33,1],[24,2,26,17],[24,18,24,26],[24,27,24,28],[24,29,26,31],[24,32,24,40],[24,41,24,42],[24,43,26,45],[26,27,26,28],[26,32,26,40],[26,41,26,42],[26,50,26,65],[26,66,27,68],[25,27,25,28],[25,32,25,40],[25,41,25,42],[23,41,23,42],[25,50,25,65],[25,66,25,68],[26,69,27,70],[27,2,27,17],[27,18,27,26],[27,27,27,28],[27,29,27,31],[27,32,27,40],[27,41,27,42],[27,43,27,45],[27,50,27,65],[26,18,26,26],[25,18,25,26],[28,2,30,17],[28,18,28,26],[28,27,28,28],[28,29,29,31],[28,32,28,40],[28,41,28,42],[30,27,30,28],[30,29,30,31],[30,32,30,40],[30,41,30,42],[28,43,29,45],[28,50,28,65],[28,66,30,68],[28,69,30,70],[29,18,29,26],[29,27,29,28],[29,32,29,40],[29,41,29,42],[29,50,29,65],[30,18,30,26],[30,43,30,45],[30,50,30,65],[31,2,33,17],[31,18,31,26],[31,27,31,28],[31,29,32,31],[31,32,31,40],[31,41,31,42],[31,43,32,45],[31,50,31,65],[31,66,33,68],[31,69,33,70],[31,74,32,79],[32,18,32,26],[32,27,32,28],[32,32,32,40],[32,41,32,42],[32,50,32,65],[32,83,32,85],[33,18,33,26],[33,27,33,28],[33,29,33,31],[33,32,33,40],[33,41,33,42],[33,43,33,45],[33,50,33,65],[33,74,34,79],[34,32,37,32],[34,33,34,40],[34,41,34,42],[34,43,36,45],[34,83,34,85],[35,33,35,40],[35,41,35,42],[35,68,36,69],[36,83,36,85],[37,19,37,26],[37,27,37,28],[37,33,37,40],[37,41,37,42],[37,43,37,45],[34,1,41,1],[34,2,41,17],[34,18,37,18],[34,19,34,26],[34,27,34,28],[34,29,40,31],[36,19,36,26],[36,27,36,28],[38,18,41,18],[38,19,38,26],[35,19,35,26],[35,27,35,28],[38,27,38,28],[38,50,39,61],[40,33,40,40],[40,41,40,42],[40,43,40,45],[40,50,41,61],[35,74,35,79],[36,33,36,40],[36,41,36,42],[36,74,36,79],[38,62,39,65],[38,77,38,86],[39,19,39,26],[39,27,39,28],[39,33,39,40],[39,41,39,42],[39,77,40,80],[39,81,40,86],[40,19,40,26],[40,27,40,28],[40,62,41,65],[41,19,41,26],[41,27,41,28],[41,29,41,31],[41,33,41,40],[41,41,41,42],[41,43,41,45],[41,77,42,80],[41,81,42,86],[42,62,43,65],[38,32,40,32],[38,33,38,40],[38,41,38,42],[38,43,39,45],[42,1,47,1],[42,2,42,17],[42,18,42,26],[42,27,42,28],[42,29,43,31],[42,32,42,40],[42,41,42,42],[42,43,43,45],[42,50,43,61],[43,2,43,17],[43,18,43,26],[43,27,43,28],[43,32,43,40],[43,41,43,42],[44,2,44,17],[44,18,44,26],[44,27,44,28],[44,29,44,31],[44,32,44,40],[44,41,44,42],[44,43,44,45],[44,50,45,61],[44,62,45,65],[45,2,47,17],[45,18,45,26],[45,27,45,28],[45,29,46,31],[45,32,45,40],[45,41,45,42],[45,43,46,45],[46,18,46,26],[46,27,46,28],[46,32,46,40],[46,41,46,42],[47,18,47,26],[47,27,47,28],[47,29,47,31],[47,32,47,40],[47,41,47,42],[47,43,47,45],[48,12,50,17],[48,18,48,31],[48,32,48,45],[48,50,49,54],[48,55,49,58],[48,61,49,65],[48,66,49,69],[49,23,50,26],[49,37,50,40],[50,27,50,31],[50,41,50,45],[50,50,51,54],[50,55,51,58],[50,61,51,65],[50,66,51,69]]}
[]
[null,"施設管理番号",null,null,null,null,{"$f":"IF('様式-2'!$G$5<>\"\",'様式-2'!$G$5,\"\")","v":""},null,{"$f":"IF('様式-2'!$H$5<>\"\",'様式-2'!$H$5,\"\")","v":""},null,{"$f":"IF('様式-2'!$I$5<>\"\",'様式-2'!$I$5,\"\")","v":""},null,{"$f":"IF('様式-2'!$J$5<>\"\",'様式-2'!$J$5,\"\")","v":""},null,{"$f":"IF('様式-2'!$K$5<>\"\",'様式-2'!$K$5,\"\")","v":"A"},null,{"$f":"IF('様式-2'!$L$5<>\"\",'様式-2'!$L$5,\"\")","v":""},null,{"$f":"IF('様式-2'!$M$5<>\"\",'様式-2'!$M$5,\"\")","v":""},null,{"$f":"IF('様式-2'!$N$5<>\"\",'様式-2'!$N$5,\"\")","v":""},null,null,"部分記号",null,null,null,null,null,null,null,null,"様式－７　　安定度調査表（落石・崩壊）",null,null,null,null,null,null,null,null,null,null,null,null,null,null,null,null,null,null,null,null,null,null,null,null,null,null,null,null,null,null,null,null,null,null,null,null,null,"点　検　者"]
[null,null,null,null,null,null,null,null,null,null,null,null,null,null,null,null,null,null,null,null,null,null,null,null,null,null,null,null,null,null,null,null,null,null,null,null,null,null,null,null,null,null,null,null,null,null,null,null,null,null,null,null,null,null,null,null,null,null,null,null,null,null,null,null,null,null,null,null,null,null,"所 属 機 関"]
[null,"[要因]（Ai）"]
[null,"項目",null,null,"要　　　　　　　　因",null,null,null,null,null,null,null,null,null,null,null,null,null,"の　　り　　面",null,null,null,null,null,null,null,null,null,null,null,null,null,"自　然　斜　面"]
[null,null,null,null,null,null,null,null,null,null,null,null,null,null,null,null,null,null,"評　点　区　分",null,null,null,null,null,null,null,null,"配点",null,"評点",null,null,"評　点　区　分",null,null,null,null,null,null,null,null,"配点",null,"評点"]
[null,"地　　　　　形","　崩壊性要因\n　　　を持つ地形",null,"Ｇ１：崖錐地形",null,null,null,null,null,null,null,null,null,null,null,null,null,"G1に該当する",null,null,null,null,null,null,null,null,3,null,null,null,null,"G2の内　　複数地形該当",null,null,null,null,null,null,null,null,3,null,null,null,null,null,null,null,null,"[対策工]（Bi）=（Ai）+αまたは（Ai）×0"]
[null,null,null,null,"Ｇ２：崩壊跡地",null,null,null,null,null,null,null,null,null,null,null,null,null,null,null,null,null,null,null,null,null,null,null,null,null,null,null,"G2の内　　１地形該当",null,null,null,null,null,null,null,null,2,null,null,null,null,null,null,null,null,"既 設 対 策 工 の 効 果 の 程 度",null,null,null,null,null,null,null,null,null,null,null,null,null,null,null,null,null,null,"点数（α）",null,null,null,null,"評　　点"]
[null,null,null,null,"　　　遷急線明瞭",null,null,null,null,null,null,null,null,null,null,null,null,null,"G1に該当せず",null,null,null,null,null,null,null,null,0,null,null,null,null,"G2には　　該当なし",null,null,null,null,null,null,null,null,0,null,null,null,null,null,null,null,null,"想定される落石・崩壊を十分に予防している、もしくは、",null,null,null,null,null,null,null,null,null,null,null,null,null,null,null,null,null,null,"×0点",null,null,null,null,"のり面",null,null,null,"斜　面"]
[null,null,null,null,"Ｇ３：台地の裾部、脚部浸食、",null,null,null,null,null,null,null,null,null,null,null,null,null,"G2,G3の内　複数地形該当",null,null,null,null,null,null,null,null,3,null,null,null,null,"G1,3の内　複数地形該当",null,null,null,null,null,null,null,null,3,null,null,null,null,null,null,null,null,"それが発生したとしても十分に防護し得る。"]
[null,null,null,null,"　　　ｵｰﾊﾞｰﾊﾝｸﾞ、集水型斜面、",null,null,null,null,null,null,null,null,null,null,null,null,null,"G2,G3の内　１地形該当",null,null,null,null,null,null,null,null,2,null,null,null,null,"G1,3の内　１地形該当",null,null,null,null,null,null,null,null,2]
[null,null,null,null,"　　　土石流跡地など",null,null,null,null,null,null,null,null,null,null,null,null,null,"G2,G3には　該当なし",null,null,null,null,null,null,null,null,0,null,null,null,null,"G1,3には　該当なし",null,null,null,null,null,null,null,null,0,null,null,null,null,null,null,null,null,"想定される落石・崩壊をかなり予防している、もしくは、",null,null,null,null,null,null,null,null,null,null,null,null,null,null,null,null,null,null,"－20点"]
[null,null,null,null,"Ｇ４：尾根先端など凸型斜面、ｵｰﾊﾞｰﾊﾝｸﾞ",null,null,null,null,null,null,null,null,null,null,null,null,null,"G4に該当する",null,null,null,null,null,null,null,null,null,null,"(6)",null,null,"G4に該当する",null,null,null,null,null,null,null,null,null,null,"(6)",null,null,null,null,null,null,"それが発生した場合かなり防護しているが、"]
[null,"土質・地質・構造","崩壊性\nの土質",null,null,"浸食に弱い土質",null,null,null,null,null,null,null,null,null,null,null,null,"顕著",null,null,null,null,null,null,null,null,8,null,null,null,null,"顕著",null,null,null,null,null,null,null,null,2,null,null,null,null,null,null,null,null,"万全ではない。"]
[null,null,null,null,null,"水を含むと強度低下しやすい土質",null,null,null,null,null,null,null,null,null,null,null,null,"やや顕著",null,null,null,null,null,null,null,null,4,null,null,null,null,"やや顕著",null,null,null,null,null,null,null,null,1,null,null,null,null,null,null,null,null,"想定される落石・崩壊を一部予防している、もしくは、",null,null,null,null,null,null,null,null,null,null,null,null,null,null,null,null,null,null,"－10点"]
[null,null,null,null,null,"その他",null,null,null,null,null,null,null,null,null,null,null,null,"該当せず",null,null,null,null,null,null,null,null,0,null,"(8)",null,null,"該当せず",null,null,null,null,null,null,null,null,0,null,"(2)",null,null,null,null,null,null,"それが発生した場合一部を防護しているが、"]
[null,null,"崩壊性\nの岩質",null,null,"割れ目や弱層の密度が高い",null,null,null,null,null,null,null,null,null,null,null,null,"顕著",null,null,null,null,null,null,null,null,12,null,null,null,null,"顕著",null,null,null,null,null,null,null,null,8,null,null,null,null,null,null,null,null,"その他の部分に対しては効果がない。"]
[null,null,null,null,null,"浸食に弱い軟岩",null,null,null,null,null,null,null,null,null,null,null,null,"やや顕著",null,null,null,null,null,null,null,null,6,null,null,null,null,"やや顕著",null,null,null,null,null,null,null,null,4,null,null,null,null,null,null,null,null,"対策がなされていない、もしくは、",null,null,null,null,null,null,null,null,null,null,null,null,null,null,null,null,null,null,"±0点"]
[null,null,null,null,null,"風化が速い岩質、その他",null,null,null,null,null,null,null,null,null,null,null,null,"該当せず",null,null,null,null,null,null,null,null,0,null,"(12)",null,null,"該当せず",null,null,null,null,null,null,null,null,0,null,"(8)",null,null,null,null,null,null,"なされていても、効果があまり期待できない。"]
[null,null,"　崩壊性\n　　の構造",null,null,"流れ盤（層理面、弱線）",null,null,null,null,null,null,null,null,null,null,null,null,"該当する",null,null,null,null,null,null,null,null,8,null,null,null,null,"該当する",null,null,null,null,null,null,null,null,2,null,null,null,null,null,null,null,null,null,null,null,null,null,null,null,null,null,null,null,null,null,null,null,null,null,null,null,"合　計",null,null,null,null,"（B1:のり面）",null,null,null,"（B2:斜面）"]
[null,null,null,null,null,null,null,null,null,null,null,null,null,null,null,null,null,null,"該当せず",null,null,null,null,null,null,null,null,0,null,null,null,null,"該当せず",null,null,null,null,null,null,null,null,0]
[null,null,null,null,null,"不透水性基盤上の土砂",null,null,null,null,null,null,null,null,null,null,null,null,"顕著",null,null,null,null,null,null,null,null,6,null,null,null,null,"顕著",null,null,null,null,null,null,null,null,4,null,null,null,null,null,null,null,null,"[履歴]（C）",null,null,null,null,null,null,null,null,null,null,null,null,null,null,null,null,null,null,null,null,null,null,null,null,null,null,"点",null,null,null,"点"]
[null,null,null,null,null,"上部が硬質／脚部が脆弱な岩",null,null,null,null,null,null,null,null,null,null,null,null,"やや顕著",null,null,null,null,null,null,null,null,4,null,null,null,null,"やや顕著",null,null,null,null,null,null,null,null,3,null,null,null,null,null,null,null,null,"＊最近の対策実施以降、落石・崩壊が当該のり面・斜面等で"]
[null,null,null,null,null,"その他",null,null,null,null,null,null,null,null,null,null,null,null,"該当せず",null,null,null,null,null,null,null,null,0,null,"(14)",null,null,"該当せず",null,null,null,null,null,null,null,null,0,null,"(6)",null,null,null,null,null,null,"発生していない場合には、履歴からの評価は実施する必要なし。"]
[null,"表層の状況","表土及び浮石・転石の状況",null,null,null,null,null,null,null,null,null,null,null,null,null,null,null,"不安定",null,null,null,null,null,null,null,null,12,null,null,null,null,"不安定",null,null,null,null,null,null,null,null,24,null,null,null,null,null,null,null,null,"　→（C）を０点とする。"]
[null,null,null,null,null,null,null,null,null,null,null,null,null,null,null,null,null,null,"やや不安定",null,null,null,null,null,null,null,null,6,null,null,null,null,"やや不安定",null,null,null,null,null,null,null,null,12,null,null,null,null,null,null,null,null,"被 災 の 頻 度 ・ 程 度 区 分",null,null,null,null,null,null,null,null,null,null,null,null,null,null,null,"配点",null,null,"評点"]
[null,null,null,null,null,null,null,null,null,null,null,null,null,null,null,null,null,null,"安定",null,null,null,null,null,null,null,null,0,null,null,null,null,"安定",null,null,null,null,null,null,null,null,0,null,null,null,null,null,null,null,null,"最近の対策以降、道路交通への支障が生じた",null,null,null,null,null,null,null,null,null,null,null,null,null,null,null,"100点"]
[null,null,"浮石・転石が不安定～やや不安定",null,null,null,null,null,null,null,null,null,null,null,null,null,null,null,"該当する",null,null,null,null,null,null,null,null,null,null,"(12)",null,null,"該当する",null,null,null,null,null,null,null,null,null,null,"(24)",null,null,null,null,null,null,"ことあり。〈対策工の効果なし〉"]
[null,null,"湧　　　　　水　　　　　状　　　　　況",null,null,null,null,null,null,null,null,null,null,null,null,null,null,null,"湧水あり",null,null,null,null,null,null,null,null,8,null,null,null,null,"湧水あり",null,null,null,null,null,null,null,null,4,null,null,null,null,null,null,null,null,"交通への支障はないが路面に達する比較的大き",null,null,null,null,null,null,null,null,null,null,null,null,null,null,null,"70点"]
[null,null,null,null,null,null,null,null,null,null,null,null,null,null,null,null,null,null,"しみ出し程度",null,null,null,null,null,null,null,null,4,null,null,null,null,"しみ出し程度",null,null,null,null,null,null,null,null,2,null,null,null,null,null,null,null,null,"な落石・崩壊の履歴あり。"]
[null,null,null,null,null,null,null,null,null,null,null,null,null,null,null,null,null,null,"なし",null,null,null,null,null,null,null,null,0,null,"(8)",null,null,"なし",null,null,null,null,null,null,null,null,0,null,"(4)",null,null,null,null,null,null,"〈対策工が万全ではない〉",null,null,null,null,null,null,null,null,null,null,null,null,null,null,null,null,null,null,null,null,null,null,null,"（D）=MAX（B,C）"]
[null,null,"表　　面　　の　　被　　覆　　状　　況",null,null,null,null,null,null,null,null,null,null,null,null,null,null,null,"裸地～植生主体",null,null,null,null,null,null,null,null,5,null,null,null,null,"裸地～植生（草本）",null,null,null,null,null,null,null,null,16,null,null,null,null,null,null,null,null,"のり面・斜面先にとどまる程度の小規模な落石",null,null,null,null,null,null,null,null,null,null,null,null,null,null,null,"40点",null,null,null,null,null,null,null,"要因からの評点",null,null,null,null,null,"（B）=MAX（B1,B2）"]
[null,null,null,null,null,null,null,null,null,null,null,null,null,null,null,null,null,null,"複合（植生・構造物）",null,null,null,null,null,null,null,null,3,null,null,null,null,"複合（裸地・草本・木本）",null,null,null,null,null,null,null,null,10,null,null,null,null,null,null,null,null,"・崩壊の履歴はあり。〈対策工の効果はあるが、",null,null,null,null,null,null,null,null,null,null,null,null,null,null,null,null,null,null,null,null,null,null,null,null,null,null,null,null,null,null,null,null,{"$f":"MAX(BX21,CB21)","v":0},null,null,"点"]
[null,null,null,null,null,null,null,null,null,null,null,null,null,null,null,null,null,null,"構造物主体",null,null,null,null,null,null,null,null,1,null,"(5)",null,null,"木本主体",null,null,null,null,null,null,null,null,6,null,"(16)",null,null,null,null,null,null,"追加対策工が必要と思われるもの〉",null,null,null,null,null,null,null,null,null,null,null,null,null,null,null,null,null,null,null,null,null,null,null,"履歴からの評点",null,null,null,null,null,"（C）"]
[null,"形　　　状","勾配（ｉ）、高さ",null,null,null,null,null,null,null,null,null,null,null,null,null,null,null,"土砂","Ｈ＞30ｍ",null,null,null,null,null,null,null,18,null,null,null,null,"高さ","Ｈ≧50ｍ",null,null,null,null,null,null,null,10,null,null,null,null,null,null,null,null,null,null,null,null,null,null,null,null,null,null,null,null,null,null,null,null,"（C）",null,null,null,null,null,null,null,null,null,null,null,null,null,null,null,null,{"$f":"BQ36","v":0},null,null,"点"]
[null,null,null,null,null,null,null,null,null,null,null,null,null,null,null,null,null,null,null,"Ｈ≦30，ｉ＞標準",null,null,null,null,null,null,null,15,null,null,null,null,null,"30≦Ｈ＜50ｍ",null,null,null,null,null,null,null,8,null,null,null,null,null,null,null,null,null,null,null,null,null,null,null,null,null,null,null,null,null,null,null,null,null,null,null,null,null,null,null,null,"（B）と（C）の内、",null,null,null,null,null,"（D）=MAX（B,C）"]
[null,null,null,null,null,null,null,null,null,null,null,null,null,null,null,null,null,null,null,"ｉ≦標準，15≦Ｈ＜30",null,null,null,null,null,null,null,10,null,null,null,null,null,"15≦Ｈ＜30ｍ",null,null,null,null,null,null,null,6,null,null,null,null,null,null,null,null,null,null,null,null,null,null,null,null,null,null,null,null,null,null,null,null,null,null,null,null,"点",null,null,null,"大きい方",null,null,null,null,null,null,null,null,{"$f":"MAX(CF33,CF35)","v":0},null,null,"点"]
[null,null,null,null,null,null,null,null,null,null,null,null,null,null,null,null,null,null,null,"ｉ≦標準，Ｈ＜15",null,null,null,null,null,null,null,5,null,null,null,null,null,"Ｈ＜15ｍ",null,null,null,null,null,null,null,4,null,"(10)",null,null,null,null,null,null,"[総合評価]"]
[null,null,null,null,null,null,null,null,null,null,null,null,null,null,null,null,null,null,"岩","Ｈ≧50ｍ",null,null,null,null,null,null,null,18,null,null,null,null,"勾配","ｉ≧70°",null,null,null,null,null,null,null,10,null,null,null,null,null,null,null,null,"対　　　　　　　　応",null,null,null,null,null,null,null,null,null,null,null,"判　定",null,null,null,null,null,null,null,null,null,null,null,null,null,null,"[地震時の安定性]"]
[null,null,null,null,null,null,null,null,null,null,null,null,null,null,null,null,null,null,null,"30≦Ｈ＜50ｍ",null,null,null,null,null,null,null,16,null,null,null,null,null,"45°≦ｉ＜70°",null,null,null,null,null,null,null,10,null,null,null,null,null,null,null,null,null,null,null,null,null,null,null,null,null,null,null,null,null,null,null,null,null,null,null,null,null,null,null,null,null,null,null,"安　　定"]
[null,null,null,null,null,null,null,null,null,null,null,null,null,null,null,null,null,null,null,"15≦Ｈ＜30ｍ",null,null,null,null,null,null,null,12,null,null,null,null,null,"ｉ＜45°",null,null,null,null,null,null,null,5,null,"(10)",null,null,null,null,null,null,"　対策が必要と判断される。"]
[null,null,null,null,null,null,null,null,null,null,null,null,null,null,null,null,null,null,null,"Ｈ＜15ｍ",null,null,null,null,null,null,null,10,null,"(18)",null,null,null,null,null,null,null,null,null,null,null,null,null,null,null,null,null,null,null,null,null,null,null,null,null,null,null,null,null,null,null,null,null,null,null,null,null,null,null,null,null,null,null,null,null,null,null,"不 安 定"]
[null,"変　　　状","当該のり面斜面の変状　　　　（肌落ち・小落石・",null,null,null,null,null,null,null,null,null,null,null,null,null,null,null,"複数該当・明瞭なものあり",null,null,null,null,null,null,null,null,12,null,null,null,null,"複数該当・明瞭なものあり",null,null,null,null,null,null,null,null,10,null,null,null,null,null,null,null,null,"　防災カルテを作成し対応する。"]
[null,null,"　ガリ浸食・洗掘・ﾊﾟｲﾋﾟﾝｸﾞ孔・陥没・はらみ出し・",null,null,null,null,null,null,null,null,null,null,null,null,null,null,null,"あり・不明瞭なもの",null,null,null,null,null,null,null,null,8,null,null,null,null,"あり・不明瞭なもの",null,null,null,null,null,null,null,null,5,null,null,null,null,null,null,null,null,null,null,null,null,null,null,null,null,null,null,null,null,null,null,null,null,null,null,null,null,null,null,null,null,null,null,"＊地形でＧ４または浮石・転"]
[null,null,"　根曲り・倒木・亀裂・開口亀裂・その他対策工の変状）",null,null,null,null,null,null,null,null,null,null,null,null,null,null,null,"なし",null,null,null,null,null,null,null,null,0,null,"(12)",null,null,"なし",null,null,null,null,null,null,null,null,0,null,"(10)",null,null,null,null,null,null,"　特に新たな対応を必要としない。",null,null,null,null,null,null,null,null,null,null,null,null,null,null,null,null,null,null,null,null,null,null,null,null,null,"　石が不安定な場合は、不安"]
[null,null,"隣接するのり面・斜面等の変状\n\n（落石・崩壊・亀裂・はらみ出し・その他の変状）",null,null,null,null,null,null,null,null,null,null,null,null,null,null,null,"複数該当・明瞭なものあり",null,null,null,null,null,null,null,null,5,null,null,null,null,"複数該当・明瞭なものあり",null,null,null,null,null,null,null,null,4,null,null,null,null,null,null,null,null,null,null,null,null,null,null,null,null,null,null,null,null,null,null,null,null,null,null,null,null,null,null,null,null,null,null,"　定欄に○印をつける。"]
[null,null,null,null,null,null,null,null,null,null,null,null,null,null,null,null,null,null,"あり・不明瞭なもの",null,null,null,null,null,null,null,null,3,null,null,null,null,"あり・不明瞭なもの",null,null,null,null,null,null,null,null,2]
[null,null,null,null,null,null,null,null,null,null,null,null,null,null,null,null,null,null,"なし",null,null,null,null,null,null,null,null,0,null,"(5)",null,null,"なし",null,null,null,null,null,null,null,null,0,null,"(4)",null,null,null,null,null,null,"[主な点検対象]",null,null,null,null,null,null,null,null,null,null,"[主な災害形態]"]
[null,null,null,null,null,null,null,null,null,null,null,null,"合　　計",null,null,null,null,null,"の　　り　　面　　：　　　　",null,null,null,null,null,null,null,null,null,null,null,null,null,"　　自　然　斜　面　：　　　　　",null,null,null,null,null,null,null,null,null,null,null,null,null,null,null,null,null,"のり面",null,null,null,null,null,null,null,null,null,null,"落　石"]
[null,null,null,null,null,null,null,null,null,null,null,null,null,null,null,null,null,null,null,null,null,null,null,{"$f":"SUM(AD7,AD14,AD17,AD20,AD25,AD29,AD32,AD35,AD43,AD46)","v":0},null,null,null,null,null,null,null,null,null,null,null,null,null,{"$f":"SUM(AR7,AR14,AR17,AR20,AR25,AR29,AR32,AR35,AR39,AR43,AR46)","v":0}]
[null,null,null,null,null,null,null,null,null,null,null,null,null,null,null,null,null,null,null,null,null,null,null,null,null,null,null,"点　　（A1）",null,null,null,null,null,null,null,null,null,null,null,null,null,"点　　（A2）",null,null,null,null,null,null,null,null,"自然斜面",null,null,null,null,null,null,null,null,null,null,"崩　壊"]
[null,"注）（　）は各項目の満点を示す。"]
[null,"　　該当する場合は配点欄に○印をつけると共に点数を記入する。",null,null,null,null,null,null,null,null,null,null,null,null,null,null,null,null,null,null,null,null,null,null,null,null,null,null,null,null,null,null,null,null,null,null,null,null,null,null,null,null,null,null,null,null,null,null,null,null,"※総合評価で示した判定がのり面部分、自然斜面のどちらに該当する"]
[null,"　　不明な場合は中間的な値を採用する。",null,null,null,null,null,null,null,null,null,null,null,null,null,null,null,null,null,null,null,null,null,null,null,null,null,null,null,null,null,null,null,null,null,null,null,null,null,null,null,null,null,null,null,null,null,null,null,null,"　かを示す。また、想定される主な災害形態が落石か崩壊かを示す。"]

{"sheet":"様式-16","index":2,"n_rows":43,"n_cols":87,"rows_kept":43,"cut":false,"hidden":false,"merged":[[41,68,41,70],[41,52,41,54],[42,81,42,83],[42,84,42,86],[42,44,42,49],[42,50,42,53],[42,54,42,57],[42,58,42,61],[42,62,42,76],[42,77,42,80],[41,55,41,56],[41,57,41,58],[41,59,41,61],[41,62,41,63],[41,64,41,67],[34,68,34,71],[34,72,34,74],[34,76,34,78],[34,79,34,81],[34,82,34,83],[35,44,40,49],[35,50,35,53],[35,54,35,56],[35,57,35,60],[35,61,35,63],[36,50,36,52],[36,53,40,87],[35,84,35,86],[35,64,35,65],[35,66,35,67],[35,68,35,77],[35,78,35,80],[35,81,35,83],[28,69,28,70],[29,50,29,52],[29,53,33,87],[34,44,34,49],[34,50,34,53],[34,54,34,56],[34,57,34,58],[34,59,34,60],[34,61,34,63],[34,64,34,66],[28,56,28,58],[28,59,28,60],[28,61,28,63],[28,64,28,65],[28,66,28,68],[28,44,33,49],[28,50,28,55],[5,57,5,61],[5,62,5,87],[6,1,6,43],[6,44,6,87],[7,1,25,43],[7,44,25,87],[5,40,5,41],[5,43,5,44],[5,45,5,46],[5,48,5,49],[5,51,5,52],[5,54,5,56],[5,1,5,8],[5,9,5,12],[5,13,5,31],[4,60,4,62],[4,63,4,87],[3,78,3,79],[3,80,3,81],[3,82,3,83],[3,84,3,85],[4,19,4,27],[4,28,4,31],[4,32,4,35],[4,45,4,46],[4,56,4,59],[27,54,27,55],[27,57,27,58],[1,27,2,61],[27,1,42,43],[27,44,27,49],[27,51,27,52],[41,44,41,49],[41,50,41,51],[5,32,5,33],[5,34,5,35],[5,37,5,38],[26,1,26,43],[26,44,26,87],[3,86,3,87],[4,1,4,5],[4,14,4,18],[1,65,2,73],[1,74,1,87],[2,74,2,87],[3,65,3,73],[3,74,3,75],[3,76,3,77]]}
[]
[null,null,null,null,null,null,null,null,null,null,null,null,null,null,null,null,null,null,null,null,null,null,null,null,null,null,null,"様式－１６　　被災履歴記録表",null,null,null,null,null,null,null,null,null,null,null,null,null,null,null,null,null,null,null,null,null,null,null,null,null,null,null,null,null,null,null,null,null,null,null,null,null,"管理機関名",null,null,null,null,null,null,null,null,{"$f":"IF('様式-2'!$BY$2<>\"\",'様式-2'!$BY$2,\"\")","v":"大阪府"}]
[null,null,null,null,null,null,null,null,null,null,null,null,null,null,null,null,null,null,null,null,null,null,null,null,null,null,null,null,null,null,null,null,null,null,null,null,null,null,null,null,null,null,null,null,null,null,null,null,null,null,null,null,null,null,null,null,null,null,null,null,null,null,null,null,null,null,null,null,null,null,null,null,null,null,{"$f":"IF('様式-2'!$BY$3<>\"\",'様式-2'!$BY$3,\"\")","v":""}]
[null,null,null,null,null,null,null,null,null,null,null,null,null,null,null,null,null,null,null,null,null,null,null,null,null,null,null,null,null,null,null,null,null,null,null,null,null,null,null,null,null,null,null,null,null,null,null,null,null,null,null,null,null,null,null,null,null,null,null,null,null,null,null,null,null,"管理機関コード",null,null,null,null,null,null,null,null,{"$f":"IF('様式-2'!$BY$4<>\"\",'様式-2'!$BY$4,\"\")","v":2},null,{"$f":"IF('様式-2'!$CA$4<>\"\",'様式-2'!$CA$4,\"\")","v":7},null,{"$f":"IF('様式-2'!$CC$4<>\"\",'様式-2'!$CC$4,\"\")","v":""},null,{"$f":"IF('様式-2'!$CE$4<>\"\",'様式-2'!$CE$4,\"\")","v":""},null,{"$f":"IF('様式-2'!$CG$4<>\"\",'様式-2'!$CG$4,\"\")","v":""},null,{"$f":"IF('様式-2'!$CI$4<>\"\",'様式-2'!$CI$4,\"\")","v":""},null,{"$f":"IF('様式-2'!$CK$4<>\"\",'様式-2'!$CK$4,\"\")","v":""}]
[null,"施設管理番号",null,null,null,null,{"$f":"IF('様式-2'!$G$5<>\"\",'様式-2'!$G$5,\"\")","v":""},{"$f":"IF('様式-2'!$H$5<>\"\",'様式-2'!$H$5,\"\")","v":""},{"$f":"IF('様式-2'!$I$5<>\"\",'様式-2'!$I$5,\"\")","v":""},{"$f":"IF('様式-2'!$J$5<>\"\",'様式-2'!$J$5,\"\")","v":""},{"$f":"IF('様式-2'!$K$5<>\"\",'様式-2'!$K$5,\"\")","v":"A"},{"$f":"IF('様式-2'!$L$5<>\"\",'様式-2'!$L$5,\"\")","v":""},{"$f":"IF('様式-2'!$M$5<>\"\",'様式-2'!$M$5,\"\")","v":""},{"$f":"IF('様式-2'!$N$5<>\"\",'様式-2'!$N$5,\"\")","v":""},"被災種別",null,null,null,null,null,null,null,null,null,null,null,null,null,"発生位置",null,null,null,"距離標（自）",null,null,null,null,null,null,null,null,null,null,null,null,"(至)",null,null,null,null,null,null,null,null,null,null,"上下線の別"]
[null,"H8年度防災点検箇所",null,null,null,null,null,null,null,null,null,null,null,null,null,null,null,null,null,null,null,null,null,null,null,null,null,null,null,null,null,null,"北緯",null,null,null,"度",null,null,"分",null,null,"秒","東経",null,null,null,"度",null,null,"分",null,null,"秒","測地系"]
[null,"平面図（被災・対策）",null,null,null,null,null,null,null,null,null,null,null,null,null,null,null,null,null,null,null,null,null,null,null,null,null,null,null,null,null,null,null,null,null,null,null,null,null,null,null,null,null,null,"断面図（被災・対策）"]
[]
[]
[]
[]
[]
[]
[]
[]
[]
[]
[]
[]
[]
[]
[]
[]
[]
[]
[]
[null,"スケッチ・現況写真（被災・対策）",null,null,null,null,null,null,null,null,null,null,null,null,null,null,null,null,null,null,null,null,null,null,null,null,null,null,null,null,null,null,null,null,null,null,null,null,null,null,null,null,null,null,"特　記　事　項"]
[null,null,null,null,null,null,null,null,null,null,null,null,null,null,null,null,null,null,null,null,null,null,null,null,null,null,null,null,null,null,null,null,null,null,null,null,null,null,null,null,null,null,null,null,"発生年月日",null,null,null,null,null,"H",null,null,"年",null,null,"月",null,null,"日"]
[null,null,null,null,null,null,null,null,null,null,null,null,null,null,null,null,null,null,null,null,null,null,null,null,null,null,null,null,null,null,null,null,null,null,null,null,null,null,null,null,null,null,null,null,"規　　　　模",null,null,null,null,null,"幅、長さ、深さ（m）",null,null,null,null,null,null,null,null,"m、",null,null,null,null,"m、",null,null,null,null,"m"]
[null,null,null,null,null,null,null,null,null,null,null,null,null,null,null,null,null,null,null,null,null,null,null,null,null,null,null,null,null,null,null,null,null,null,null,null,null,null,null,null,null,null,null,null,null,null,null,null,null,null,"コメント："]
[]
[]
[]
[]
[null,null,null,null,null,null,null,null,null,null,null,null,null,null,null,null,null,null,null,null,null,null,null,null,null,null,null,null,null,null,null,null,null,null,null,null,null,null,null,null,null,null,null,null,"誘　　　　因",null,null,null,null,null,"降雨：連続",null,null,null,null,null,null,"mm",null,"最大",null,null,null,null,"mm／hr",null,null,null,"地震：震度",null,null,null,null,null,null,null,"加速度",null,null,null,null,null,"gal"]
[null,null,null,null,null,null,null,null,null,null,null,null,null,null,null,null,null,null,null,null,null,null,null,null,null,null,null,null,null,null,null,null,null,null,null,null,null,null,null,null,null,null,null,null,"被　　　　害",null,null,null,null,null,"人身：死者",null,null,null,null,null,null,"人、 負傷者",null,null,null,null,null,null,"人、",null,"物損：",null,null,null,null,null,null,null,null,null,null,null,"被害額：",null,null,null,null,null,"百万円"]
[null,null,null,null,null,null,null,null,null,null,null,null,null,null,null,null,null,null,null,null,null,null,null,null,null,null,null,null,null,null,null,null,null,null,null,null,null,null,null,null,null,null,null,null,null,null,null,null,null,null,"コメント："]
[]
[]
[]
[]
[null,null,null,null,null,null,null,null,null,null,null,null,null,null,null,null,null,null,null,null,null,null,null,null,null,null,null,null,null,null,null,null,null,null,null,null,null,null,null,null,null,null,null,null,"通行止実績",null,null,null,null,null,"全面",null,null,null,null,"時間、",null,"片側",null,null,null,null,"時間、",null,"路肩規則"]
[null,null,null,null,null,null,null,null,null,null,null,null,null,null,null,null,null,null,null,null,null,null,null,null,null,null,null,null,null,null,null,null,null,null,null,null,null,null,null,null,null,null,null,null,"対　策　工",null,null,null,null,null,"施工年度：",null,null,null,null,null,null,null,"対策工種：",null,null,null,null,null,null,null,null,null,null,null,null,null,null,null,null,null,null,"概算工費：",null,null,null,null,null,null,"百万円"]

{"sheet":"現状記録写真","index":3,"n_rows":6,"n_cols":88,"rows_kept":6,"cut":false,"hidden":false,"merged":[[374,6,375,38],[374,39,375,43],[374,45,375,49],[374,50,375,82],[374,83,375,87],[355,50,356,82],[355,83,356,87],[357,1,357,43],[357,45,357,87],[358,1,358,43],[358,44,375,44],[358,45,358,87],[359,1,373,43],[359,45,373,87],[374,1,375,5],[339,1,339,43],[339,44,356,44],[339,45,339,87],[340,1,354,43],[340,45,354,87],[355,1,356,5],[355,6,356,38],[355,39,356,43],[355,45,356,49],[321,1,321,43],[321,44,338,44],[321,45,321,87],[322,1,336,43],[322,45,336,87],[337,1,338,5],[337,6,338,38],[337,39,338,43],[337,45,338,49],[337,50,338,82],[337,83,338,87],[318,39,319,43],[318,45,319,49],[318,50,319,82],[318,83,319,87],[320,1,320,43],[320,45,320,87],[300,45,301,49],[300,50,301,82],[300,83,301,87],[302,1,302,43],[302,44,319,44],[302,45,302,87],[303,1,317,43],[303,45,317,87],[318,1,319,5],[318,6,319,38],[283,1,283,43],[283,45,283,87],[284,1,284,43],[284,44,301,44],[284,45,284,87],[285,1,299,43],[285,45,299,87],[300,1,301,5],[300,6,301,38],[300,39,301,43],[246,1,246,43],[246,45,246,87],[247,1,247,43],[247,44,264,44],[247,45,247,87],[248,1,262,43],[248,45,262,87],[263,1,264,5],[281,1,282,5],[281,6,282,38],[281,39,282,43],[281,45,282,49],[281,50,282,82],[281,83,282,87],[263,6,264,38],[263,39,264,43],[263,45,264,49],[263,50,264,82],[263,83,264,87],[265,1,265,43],[265,44,282,44],[265,45,265,87],[266,1,280,43],[266,45,280,87],[228,1,228,43],[228,44,245,44],[228,45,228,87],[229,1,243,43],[229,45,243,87],[244,1,245,5],[244,6,245,38],[244,39,245,43],[244,45,245,49],[244,50,245,82],[244,83,245,87],[210,1,210,43],[210,44,227,44],[210,45,210,87],[211,1,225,43],[211,45,225,87],[226,1,227,5],[226,6,227,38],[226,39,227,43],[226,45,227,49],[226,50,227,82],[226,83,227,87],[207,39,208,43],[207,45,208,49],[207,50,208,82],[207,83,208,87],[209,1,209,43],[209,45,209,87],[189,45,190,49],[189,50,190,82],[189,83,190,87],[191,1,191,43],[191,44,208,44],[191,45,191,87],[192,1,206,43],[192,45,206,87],[207,1,208,5],[207,6,208,38],[172,1,172,43],[172,45,172,87],[173,1,173,43],[173,44,190,44],[173,45,173,87],[174,1,188,43],[174,45,188,87],[189,1,190,5],[189,6,190,38],[189,39,190,43],[135,1,135,43],[135,45,135,87],[136,1,136,43],[136,44,153,44],[136,45,136,87],[137,1,151,43],[137,45,151,87],[152,1,153,5],[170,1,171,5],[170,6,171,38],[170,39,171,43],[170,45,171,49],[170,50,171,82],[170,83,171,87],[152,6,153,38],[152,39,153,43],[152,45,153,49],[152,50,153,82],[152,83,153,87],[154,1,154,43],[154,44,171,44],[154,45,154,87],[155,1,169,43],[155,45,169,87],[117,1,117,43],[117,44,134,44],[117,45,117,87],[118,1,132,43],[118,45,132,87],[133,1,134,5],[133,6,134,38],[133,39,134,43],[133,45,134,49],[133,50,134,82],[133,83,134,87],[99,1,99,43],[99,44,116,44],[99,45,99,87],[100,1,114,43],[100,45,114,87],[115,1,116,5],[115,6,116,38],[115,39,116,43],[115,45,116,49],[115,50,116,82],[115,83,116,87],[96,6,97,38],[96,39,97,43],[96,45,97,49],[96,50,97,82],[96,83,97,87],[98,1,98,43],[98,45,98,87],[78,39,79,43],[78,45,79,49],[78,50,79,82],[78,83,79,87],[80,1,80,43],[80,44,97,44],[80,45,80,87],[81,1,95,43],[81,45,95,87],[96,1,97,5],[26,1,40,43],[41,6,42,38],[41,39,42,43],[61,1,61,43],[61,45,61,87],[62,1,62,43],[62,44,79,44],[62,45,62,87],[63,1,77,43],[63,45,77,87],[78,1,79,5],[78,6,79,38],[43,1,43,43],[43,44,60,44],[43,45,43,87],[44,1,58,43],[44,45,58,87],[59,1,60,5],[59,6,60,38],[59,39,60,43],[59,45,60,49],[59,50,60,82],[59,83,60,87],[22,1,23,5],[26,45,40,87],[41,45,42,49],[41,50,42,82],[5,28,5,44],[24,1,24,43],[24,45,24,87],[25,1,25,43],[25,44,42,44],[41,83,42,87],[25,45,25,87],[41,1,42,5],[22,39,23,43],[5,60,5,61],[5,63,5,64],[5,80,5,82],[5,66,5,67],[22,50,23,82],[5,10,5,16],[5,17,5,21],[7,1,21,43],[5,45,5,47],[5,48,5,57],[6,44,23,44],[1,27,2,61],[1,65,2,73],[1,74,1,87],[2,74,2,87],[3,65,3,73],[3,74,3,75],[3,84,3,85],[3,86,3,87],[22,6,23,38],[5,22,5,24],[5,25,5,27],[6,1,6,43],[5,71,5,72],[5,74,5,75],[5,77,5,78],[5,4,5,6],[5,7,5,9],[5,69,5,70],[5,1,5,3],[22,45,23,49],[4,1,4,5],[6,45,6,87],[5,58,5,59],[7,45,21,87],[5,83,5,87],[22,83,23,87],[4,14,4,18],[4,25,4,27],[4,28,4,49],[4,74,4,77],[3,76,3,77],[3,78,3,79],[3,80,3,81],[3,82,3,83],[4,83,4,86],[4,81,4,82],[4,50,4,53],[4,19,4,24],[4,63,4,64],[4,78,4,80]]}
[]
[null,null,null,null,null,null,null,null,null,null,null,null,null,null,null,null,null,null,null,null,null,null,null,null,null,null,null,"現状記録写真",null,null,null,null,null,null,null,null,null,null,null,null,null,null,null,null,null,null,null,null,null,null,null,null,null,null,null,null,null,null,null,null,null,null,null,null,null,"管理機関名",null,null,null,null,null,null,null,null,{"$f":"IF('様式-2'!$BY$2<>\"\",'様式-2'!$BY$2,\"\")","v":"大阪府"}]
[null,null,null,null,null,null,null,null,null,null,null,null,null,null,null,null,null,null,null,null,null,null,null,null,null,null,null,null,null,null,null,null,null,null,null,null,null,null,null,null,null,null,null,null,null,null,null,null,null,null,null,null,null,null,null,null,null,null,null,null,null,null,null,null,null,null,null,null,null,null,null,null,null,null,{"$f":"IF('様式-2'!$BY$3<>\"\",'様式-2'!$BY$3,\"\")","v":""}]
[null,null,null,null,null,null,null,null,null,null,null,null,null,null,null,null,null,null,null,null,null,null,null,null,null,null,null,null,null,null,null,null,null,null,null,null,null,null,null,null,null,null,null,null,null,null,null,null,null,null,null,null,null,null,null,null,null,null,null,null,null,null,null,null,null,"管理機関コード",null,null,null,null,null,null,null,null,{"$f":"IF('様式-2'!BY4<>\"\",'様式-2'!BY4,\"\")","v":2},null,{"$f":"IF('様式-2'!CA4<>\"\",'様式-2'!CA4,\"\")","v":7},null,{"$f":"IF('様式-2'!CC4<>\"\",'様式-2'!CC4,\"\")","v":""},null,{"$f":"IF('様式-2'!CE4<>\"\",'様式-2'!CE4,\"\")","v":""},null,{"$f":"IF('様式-2'!CG4<>\"\",'様式-2'!CG4,\"\")","v":""},null,{"$f":"IF('様式-2'!CI4<>\"\",'様式-2'!CI4,\"\")","v":""},null,{"$f":"IF('様式-2'!CK4<>\"\",'様式-2'!CK4,\"\")","v":""}]
[null,"施設管理番号",null,null,null,null,{"$f":"IF('様式-2'!$G$5<>\"\",'様式-2'!$G$5,\"\")","v":""},{"$f":"IF('様式-2'!$H$5<>\"\",'様式-2'!$H$5,\"\")","v":""},{"$f":"IF('様式-2'!$I$5<>\"\",'様式-2'!$I$5,\"\")","v":""},{"$f":"IF('様式-2'!$J$5<>\"\",'様式-2'!$J$5,\"\")","v":""},{"$f":"IF('様式-2'!$K$5<>\"\",'様式-2'!$K$5,\"\")","v":"A"},{"$f":"IF('様式-2'!$L$5<>\"\",'様式-2'!$L$5,\"\")","v":""},{"$f":"IF('様式-2'!$M$5<>\"\",'様式-2'!$M$5,\"\")","v":""},{"$f":"IF('様式-2'!$N$5<>\"\",'様式-2'!$N$5,\"\")","v":""},"点検対象項目",null,null,null,null,{"$f":"IF('様式-2'!$T$5<>\"\",'様式-2'!$T$5,\"\")","v":"落石・崩壊"},null,null,null,null,null,"路線名",null,null,{"$f":"IF('様式-2'!$AC$5<>\"\",'様式-2'!$AC$5,\"\")","v":""},null,null,null,null,null,null,null,null,null,null,null,null,null,null,null,null,null,null,null,null,null,"距離標（自）",null,null,null,{"$f":"IF('様式-2'!$BE$5<>\"\",'様式-2'!$BE$5,\"\")","v":""},{"$f":"IF('様式-2'!$BF$5<>\"\",'様式-2'!$BF$5,\"\")","v":""},{"$f":"IF('様式-2'!$BG$5<>\"\",'様式-2'!$BG$5,\"\")","v":""},{"$f":"IF('様式-2'!$BH$5<>\"\",'様式-2'!$BH$5,\"\")","v":""},{"$f":"IF('様式-2'!$BI$5<>\"\",'様式-2'!$BI$5,\"\")","v":""},{"$f":"IF('様式-2'!$BJ$5<>\"\",'様式-2'!$BJ$5,\"\")","v":""},{"$f":"IF('様式-2'!$BK$5<>\"\",'様式-2'!$BK$5,\"\")","v":""},{"$f":"IF('様式-2'!$BL$5<>\"\",'様式-2'!$BL$5,\"\")","v":""},{"$f":"IF('様式-2'!$BM$5<>\"\",'様式-2'!$BM$5,\"\")","v":""},"(至)",null,{"$f":"IF('様式-2'!$BP$5<>\"\",'様式-2'!$BP$5,\"\")","v":""},{"$f":"IF('様式-2'!$BQ$5<>\"\",'様式-2'!$BQ$5,\"\")","v":""},{"$f":"IF('様式-2'!$BR$5<>\"\",'様式-2'!$BR$5,\"\")","v":""},{"$f":"IF('様式-2'!$BS$5<>\"\",'様式-2'!$BS$5,\"\")","v":""},{"$f":"IF('様式-2'!$BT$5<>\"\",'様式-2'!$BT$5,\"\")","v":""},{"$f":"IF('様式-2'!$BU$5<>\"\",'様式-2'!$BU$5,\"\")","v":""},{"$f":"IF('様式-2'!$BV$5<>\"\",'様式-2'!$BV$5,\"\")","v":""},{"$f":"IF('様式-2'!$BW$5<>\"\",'様式-2'!$BW$5,\"\")","v":""},{"$f":"IF('様式-2'!$BX$5<>\"\",'様式-2'!$BX$5,\"\")","v":""},"上下線の別",null,null,null,{"$f":"IF('様式-2'!$CC$5<>\"\",'様式-2'!$CC$5,\"\")","v":""},null,null,"延長",null,{"$f":"IF('様式-2'!$CH$5<>\"\",'様式-2'!$CH$5,\"\")","v":""},null,null,null,"m"]
[null,"事業区分",null,null,{"$f":"IF('様式-2'!$E$6<>\"\",'様式-2'!$E$6,\"\")","v":""},null,null,"道路種別",null,null,{"$f":"IF('様式-2'!$K$6<>\"\",'様式-2'!$K$6,\"\")","v":""},null,null,null,null,null,null,"現道・旧道路区分",null,null,null,null,{"$f":"IF('様式-2'!$W$6<>\"\",'様式-2'!$W$6,\"\")","v":""},null,null,"所在地",null,null,{"$f":"IF('様式-2'!$AC$6<>\"\",'様式-2'!$AC$6,\"\")","v":""},null,null,null,null,null,null,null,null,null,null,null,null,null,null,null,null,"位置目印",null,null,{"$f":"IF('様式-2'!$AW$6<>\"\",'様式-2'!$AW$6,\"\")","v":""},null,null,null,null,null,null,null,null,null,"北緯",null,{"$f":"IF('様式-2'!$BK$6<>\"\",'様式-2'!$BK$6,\"\")","v":""},null,"度",{"$f":"IF('様式-2'!$BN$6<>\"\",'様式-2'!$BN$6,\"\")","v":""},null,"分",{"$f":"IF('様式-2'!$BQ$6<>\"\",'様式-2'!$BQ$6,\"\")","v":""},null,"秒","東経",null,{"$f":"IF('様式-2'!$BV$6<>\"\",'様式-2'!$BV$6,\"\")","v":""},null,"度",{"$f":"IF('様式-2'!$BY$6<>\"\",'様式-2'!$BY$6,\"\")","v":""},null,"分",{"$f":"IF('様式-2'!$CB$6<>\"\",'様式-2'!$CB$6,\"\")","v":""},null,"秒","測地系",null,null,{"$f":"IF('様式-2'!$CH$6<>\"\",'様式-2'!$CH$6,\"\")","v":""}]

{"sheet":"MASTER","index":4,"n_rows":298,"n_cols":118,"rows_kept":298,"cut":false,"hidden":true,"merged":[[0,99,0,100],[0,104,0,105],[0,109,0,110],[0,114,0,115],[0,94,0,95],[0,84,0,85],[0,89,0,90],[0,3,0,4],[0,37,0,38],[0,74,0,75],[0,79,0,80],[0,28,0,29],[0,58,0,60],[0,53,0,54],[0,64,0,65],[0,69,0,70],[0,42,0,49]]}
["帳票名","InspectionDP1",null,"帳票名",null,null,null,null,"LIST_マイナス",null,null,null,"LIST_数字",null,null,null,"LIST_上下他",null,null,null,"LIST_測地系",null,null,null,"LIST_事務所",null,null,null,"LIST_点検対象項目",null,null,null,null,"LIST_被災履歴",null,null,null,"CD_BG_ORNOT",null,null,null,null,"TB_CO_ROUTE",null,null,null,null,null,null,null,null,null,null,"TB_CO_OFFICE",null,null,null,null,"CD_DP_INSPECTION_SCOPE",null,null,null,null,null,"CD_ROUTEKIND",null,null,null,null,"CD_NEWOLD",null,null,null,null,"CD_MC_DIVISION",null,null,null,null,"CD_BG_CHARGEROAD",null,null,null,null,"CD_DP_ADVANCE_REGULATION",null,null,null,null,"CD_BG_DIDORNOT",null,null,null,null,"CD_BG_EMERGENCY",null,null,null,null,"CD_WEATHER",null,null,null,null,"CD_DP_JUDGE",null,null,null,null,"CD_DP_STATE",null,null,null,null,"CD_DP_EQ_STABLE"]
["FacilityID",null,null,"CD","名称",null,"コード数",null,"名称",null,"コード数",null,"名称",null,"コード数",null,"名称",null,"コード数",null,"名称",null,"コード数",null,"名称",null,"コード数",null,"CD","名称",null,"コード数",null,"名称",null,"コード数",null,"CD","名称",null,"コード数",null,"RouteID","DisplayName","RouteBaseID","RouteKindCD","RouteKindName","InnerNo","NewOldCD","NewOldName",null,"コード数",null,"CD","名称",null,"コード数",null,"CD","名称","名称",null,"コード数",null,"CD","名称",null,"コード数",null,"CD","名称",null,"コード数",null,"CD","名称",null,"コード数",null,"CD","名称",null,"コード数",null,"CD","名称",null,"コード数",null,"CD","名称",null,"コード数",null,"CD","名称",null,"コード数",null,"CD","名称",null,"コード数",null,"CD","名称",null,"コード数",null,"CD","名称",null,"コード数",null,"CD","名称",null,"コード数"]
["テーブル名","TB_DP_INSPECTION",null,0,"-",null,{"$f":"IF(MAX(INDEX(($E$3:$E$60000<>\"\")*ROW($E$3:$E$60000),0))-2<0,0,MAX(INDEX(($E$3:$E$60000<>\"\")*ROW($E$3:$E$60000),0))-2)","v":28},null,null,null,{"$f":"IF(MAX(INDEX(($I$3:$I$60000<>\"\")*ROW($I$3:$I$60000),0))-2<0,0,MAX(INDEX(($I$3:$I$60000<>\"\")*ROW($I$3:$I$60000),0))-2)","v":2},null,0,null,{"$f":"IF(MAX(INDEX(($M$3:$M$60000<>\"\")*ROW($M$3:$M$60000),0))-2<0,0,MAX(INDEX(($M$3:$M$60000<>\"\")*ROW($M$3:$M$60000),0))-2)","v":10},null,"上",null,{"$f":"IF(MAX(INDEX(($Q$3:$Q$60000<>\"\")*ROW($Q$3:$Q$60000),0))-2<0,0,MAX(INDEX(($Q$3:$Q$60000<>\"\")*ROW($Q$3:$Q$60000),0))-2)","v":3},null,"日本測地系",null,{"$f":"IF(MAX(INDEX(($U$3:$U$60000<>\"\")*ROW($U$3:$U$60000),0))-2<0,0,MAX(INDEX(($U$3:$U$60000<>\"\")*ROW($U$3:$U$60000),0))-2)","v":2},null,"I",null,{"$f":"IF(MAX(INDEX(($Y$3:$Y$60000<>\"\")*ROW($Y$3:$Y$60000),0))-2<0,0,MAX(INDEX(($Y$3:$Y$60000<>\"\")*ROW($Y$3:$Y$60000),0))-2)","v":7},null,"A","落石・崩壊",null,{"$f":"IF(MAX(INDEX(($AC$3:$AC$60000<>\"\")*ROW($AC$3:$AC$60000),0))-2<0,0,MAX(INDEX(($AC$3:$AC$60000<>\"\")*ROW($AC$3:$AC$60000),0))-2)","v":8},null,null,null,{"$f":"IF(MAX(INDEX(($AH$3:$AH$60000<>\"\")*ROW($AH$3:$AH$60000),0))-2<0,0,MAX(INDEX(($AH$3:$AH$60000<>\"\")*ROW($AH$3:$AH$60000),0))-2)","v":3},null,0,"-",null,{"$f":"IF(MAX(INDEX(($AM$3:$AM$60000<>\"\")*ROW($AM$3:$AM$60000),0))-2<0,0,MAX(INDEX(($AM$3:$AM$60000<>\"\")*ROW($AM$3:$AM$60000),0))-2)","v":3},null,1,"１６６号",1,2,"一般国道",166,1,"現道",null,{"$f":"IF(MAX(INDEX(($AR$3:$AR$60000<>\"\")*ROW($AR$3:$AR$60000),0))-2<0,0,MAX(INDEX(($AR$3:$AR$60000<>\"\")*ROW($AR$3:$AR$60000),0))-2)","v":296},null,0,"-",null,{"$f":"IF(MAX(INDEX(($BC$3:$BC$60000<>\"\")*ROW($BC$3:$BC$60000),0))-2<0,0,MAX(INDEX(($BC$3:$BC$60000<>\"\")*ROW($BC$3:$BC$60000),0))-2)","v":10},null,0,"-",null,null,{"$f":"IF(MAX(INDEX(($BH$3:$BH$60000<>\"\")*ROW($BH$3:$BH$60000),0))-2<0,0,MAX(INDEX(($BH$3:$BH$60000<>\"\")*ROW($BH$3:$BH$60000),0))-2)","v":11},null,0,"-",null,{"$f":"IF(MAX(INDEX(($BN$3:$BN$60000<>\"\")*ROW($BN$3:$BN$60000),0))-2<0,0,MAX(INDEX(($BN$3:$BN$60000<>\"\")*ROW($BN$3:$BN$60000),0))-2)","v":9},null,0,"-",null,{"$f":"IF(MAX(INDEX(($BS$3:$BS$60000<>\"\")*ROW($BS$3:$BS$60000),0))-2<0,0,MAX(INDEX(($BS$3:$BS$60000<>\"\")*ROW($BS$3:$BS$60000),0))-2)","v":5},null,0,"-",null,{"$f":"IF(MAX(INDEX(($BX$3:$BX$60000<>\"\")*ROW($BX$3:$BX$60000),0))-2<0,0,MAX(INDEX(($BX$3:$BX$60000<>\"\")*ROW($BX$3:$BX$60000),0))-2)","v":7},null,0,"-",null,{"$f":"IF(MAX(INDEX(($CC$3:$CC$60000<>\"\")*ROW($CC$3:$CC$60000),0))-2<0,0,MAX(INDEX(($CC$3:$CC$60000<>\"\")*ROW($CC$3:$CC$60000),0))-2)","v":8},null,0,"-",null,{"$f":"IF(MAX(INDEX(($CH$3:$CH$60000<>\"\")*ROW($CH$3:$CH$60000),0))-2<0,0,MAX(INDEX(($CH$3:$CH$60000<>\"\")*ROW($CH$3:$CH$60000),0))-2)","v":5},null,0,"-",null,{"$f":"IF(MAX(INDEX(($CM$3:$CM$60000<>\"\")*ROW($CM$3:$CM$60000),0))-2<0,0,MAX(INDEX(($CM$3:$CM$60000<>\"\")*ROW($CM$3:$CM$60000),0))-2)","v":3},null,0,"-",null,{"$f":"IF(MAX(INDEX(($CR$3:$CR$60000<>\"\")*ROW($CR$3:$CR$60000),0))-2<0,0,MAX(INDEX(($CR$3:$CR$60000<>\"\")*ROW($CR$3:$CR$60000),0))-2)","v":6},null,0,"-",null,{"$f":"IF(MAX(INDEX(($CW$3:$CW$60000<>\"\")*ROW($CW$3:$CW$60000),0))-2<0,0,MAX(INDEX(($CW$3:$CW$60000<>\"\")*ROW($CW$3:$CW$60000),0))-2)","v":5},null,0,"-",null,{"$f":"IF(MAX(INDEX(($DB$3:$DB$60000<>\"\")*ROW($DB$3:$DB$60000),0))-2<0,0,MAX(INDEX(($DB$3:$DB$60000<>\"\")*ROW($DB$3:$DB$60000),0))-2)","v":8},null,0,"-",null,{"$f":"IF(MAX(INDEX(($DG$3:$DG$60000<>\"\")*ROW($DG$3:$DG$60000),0))-2<0,0,MAX(INDEX(($DG$3:$DG$60000<>\"\")*ROW($DG$3:$DG$60000),0))-2)","v":5},null,0,"-",null,{"$f":"IF(MAX(INDEX(($DL$3:$DL$60000<>\"\")*ROW($DL$3:$DL$60000),0))-2<0,0,MAX(INDEX(($DL$3:$DL$60000<>\"\")*ROW($DL$3:$DL$60000),0))-2)","v":3}]
["O_DP_INSPECTION_ID",null,null,1,"FacilityTN",null,null,null,"-",null,null,null,1,null,null,null,"下",null,null,null,"世界測地系",null,null,null,"B",null,null,null,"B","岩盤崩壊",null,null,null,"被災履歴記録表参照",null,null,null,1,"無",null,null,null,2,"１６８号",2,2,"一般国道",168,1,"現道",null,null,null,21,"堺泉北港湾事務所",null,null,null,1,"落石・崩壊",null,null,null,null,1,"高速自動車国道",null,null,null,1,"現道",null,null,null,1,"上り",null,null,null,1,"一般（無料）橋",null,null,null,1,"なし",null,null,null,1,"該当",null,null,null,1,"広域緊急交通路（１４ルート）",null,null,null,1,"晴",null,null,null,1,"要対策",null,null,null,1,"未着手",null,null,null,1,"安定"]
[null,null,null,2,"FacilityCS",null,null,null,null,null,null,null,2,null,null,null,"他",null,null,null,null,null,null,null,"H",null,null,null,"C","地すべり",null,null,null,"詳細不明：",null,null,null,2,"有",null,null,null,3,"（旧）１６８号",2,2,"一般国道",168,2,"旧道",null,null,null,22,"阪南港湾事務所",null,null,null,2,"岩石崩壊",null,null,null,null,2,"一般国道",null,null,null,2,"旧道",null,null,null,2,"下り",null,null,null,2,"有料橋",null,null,null,2,"通行",null,null,null,2,"非該当",null,null,null,2,"広域緊急交通路（その他）",null,null,null,2,"曇",null,null,null,2,"経過観察",null,null,null,2,"施工中",null,null,null,2,"不安定"]
[null,null,null,3,"FacilityRE1",null,null,null,null,null,null,null,3,null,null,null,null,null,null,null,null,null,null,null,"Y",null,null,null,"D","雪崩",null,null,null,null,null,null,null,null,null,null,null,null,4,"（新）１６８号",2,2,"一般国道",168,3,"新道",null,null,null,41,"池田土木事務所",null,null,null,3,"地すべり",null,null,null,null,3,"一般府道",null,null,null,3,"新道",null,null,null,3,"上り・下り",null,null,null,3,"不明",null,null,null,3,"特殊",null,null,null,null,null,null,null,null,3,"一般道（緊急交通路以外）",null,null,null,3,"雨",null,null,null,3,"対策不要1",null,null,null,3,"完了"]
[null,null,null,4,"FacilityRE2",null,null,null,null,null,null,null,4,null,null,null,null,null,null,null,null,null,null,null,"T",null,null,null,"E","土石流",null,null,null,null,null,null,null,null,null,null,null,null,5,"１７０号",3,2,"一般国道",170,1,"現道",null,null,null,42,"茨木土木事務所",null,null,null,4,"雪崩",null,null,null,null,4,"主要地方道",null,null,null,4,"新新道",null,null,null,4,"中央",null,null,null,4,"一般道－無料橋",null,null,null,21,"通行規制",null,null,null,null,null,null,null,null,11,"指定無",null,null,null,4,"雪",null,null,null,4,"対策不要2",null,null,null,4,"撤去"]
[null,null,null,5,"FacilityRE3",null,null,null,null,null,null,null,5,null,null,null,null,null,null,null,null,null,null,null,"O",null,null,null,"F","盛土",null,null,null,null,null,null,null,null,null,null,null,null,8,"（旧）１７０号",3,2,"一般国道",170,2,"旧道",null,null,null,43,"枚方土木事務所",null,null,null,5,"土石流",null,null,null,null,5,"市町村道　１級",null,null,null,null,null,null,null,null,5,"側道",null,null,null,5,"一般道－有料橋",null,null,null,null,null,null,null,null,null,null,null,null,null,12,"指定有",null,null,null,null,null,null,null,null,11,"対策が必要と判断される"]
[null,null,null,6,"FacilityRE4",null,null,null,null,null,null,null,6,null,null,null,null,null,null,null,null,null,null,null,"K",null,null,null,"G","擁壁",null,null,null,null,null,null,null,null,null,null,null,null,10,"（新）１７０号",3,2,"一般国道",170,3,"新道",null,null,null,44,"八尾土木事務所",null,null,null,6,"盛土",null,null,null,null,6,"市町村道　２級",null,null,null,null,null,null,null,null,6,"横断",null,null,null,6,"自専道－無料橋",null,null,null,null,null,null,null,null,null,null,null,null,null,null,null,null,null,null,null,null,null,null,null,12,"防災カルテを作成し対応する"]
[null,null,null,7,"FacilityRE5",null,null,null,null,null,null,null,7,null,null,null,null,null,null,null,null,null,null,null,null,null,null,null,"H","橋梁基礎の洗掘",null,null,null,null,null,null,null,null,null,null,null,null,12,"１７３号",4,2,"一般国道",173,1,"現道",null,null,null,45,"富田林土木事務所",null,null,null,7,"擁壁",null,null,null,null,7,"市町村道　その他",null,null,null,null,null,null,null,null,null,null,null,null,null,7,"自専道－有料橋",null,null,null,null,null,null,null,null,null,null,null,null,null,null,null,null,null,null,null,null,null,null,null,13,"特に新たな対応を必要としない"]
[null,null,null,8,"FacilityP",null,null,null,null,null,null,null,8,null,null,null,null,null,null,null,null,null,null,null,null,null,null,null,null,null,null,null,null,null,null,null,null,null,null,null,null,null,14,"１７６号",5,2,"一般国道",176,1,"現道",null,null,null,46,"鳳土木事務所",null,null,null,8,"橋梁基礎の洗掘",null,null,null,null,99,"その他"]
[null,null,null,9,"InspectionTN",null,null,null,null,null,null,null,9,null,null,null,null,null,null,null,null,null,null,null,null,null,null,null,null,null,null,null,null,null,null,null,null,null,null,null,null,null,16,"（旧）１７６号",5,2,"一般国道",176,2,"旧道",null,null,null,47,"岸和田土木事務所",null,null,null,9,"地吹雪"]
[null,null,null,10,"InspectionCS",null,null,null,null,null,null,null,null,null,null,null,null,null,null,null,null,null,null,null,null,null,null,null,null,null,null,null,null,null,null,null,null,null,null,null,null,null,17,"（新）１７６号",5,2,"一般国道",176,3,"新道",null,null,null,null,null,null,null,null,10,"その他"]
[null,null,null,11,"InspectionDP1",null,null,null,null,null,null,null,null,null,null,null,null,null,null,null,null,null,null,null,null,null,null,null,null,null,null,null,null,null,null,null,null,null,null,null,null,null,18,"３０７号",6,2,"一般国道",307,1,"現道"]
[null,null,null,12,"InspectionDP2",null,null,null,null,null,null,null,null,null,null,null,null,null,null,null,null,null,null,null,null,null,null,null,null,null,null,null,null,null,null,null,null,null,null,null,null,null,20,"３０８号",7,2,"一般国道",308,1,"現道"]
[null,null,null,13,"InspectionDP3",null,null,null,null,null,null,null,null,null,null,null,null,null,null,null,null,null,null,null,null,null,null,null,null,null,null,null,null,null,null,null,null,null,null,null,null,null,21,"３０９号",8,2,"一般国道",309,1,"現道"]
[null,null,null,14,"InspectionDP4",null,null,null,null,null,null,null,null,null,null,null,null,null,null,null,null,null,null,null,null,null,null,null,null,null,null,null,null,null,null,null,null,null,null,null,null,null,22,"（旧）３０９号",8,2,"一般国道",309,2,"旧道"]
[null,null,null,15,"InspectionDP5",null,null,null,null,null,null,null,null,null,null,null,null,null,null,null,null,null,null,null,null,null,null,null,null,null,null,null,null,null,null,null,null,null,null,null,null,null,23,"（新）３０９号",8,2,"一般国道",309,3,"新道"]
[null,null,null,16,"InspectionDP6",null,null,null,null,null,null,null,null,null,null,null,null,null,null,null,null,null,null,null,null,null,null,null,null,null,null,null,null,null,null,null,null,null,null,null,null,null,24,"３１０号",9,2,"一般国道",310,1,"現道"]
[null,null,null,17,"InspectionDP7",null,null,null,null,null,null,null,null,null,null,null,null,null,null,null,null,null,null,null,null,null,null,null,null,null,null,null,null,null,null,null,null,null,null,null,null,null,25,"３７１号",10,2,"一般国道",371,1,"現道"]
[null,null,null,18,"InspectionDP8",null,null,null,null,null,null,null,null,null,null,null,null,null,null,null,null,null,null,null,null,null,null,null,null,null,null,null,null,null,null,null,null,null,null,null,null,null,26,"（旧）３７１号",10,2,"一般国道",371,2,"旧道"]
[null,null,null,19,"InspectionDP9",null,null,null,null,null,null,null,null,null,null,null,null,null,null,null,null,null,null,null,null,null,null,null,null,null,null,null,null,null,null,null,null,null,null,null,null,null,27,"（新）３７１号",10,2,"一般国道",371,3,"新道"]
[null,null,null,20,"InspectionDP10",null,null,null,null,null,null,null,null,null,null,null,null,null,null,null,null,null,null,null,null,null,null,null,null,null,null,null,null,null,null,null,null,null,null,null,null,null,30,"４２３号",11,2,"一般国道",423,1,"現道"]
[null,null,null,21,"InspectionFS",null,null,null,null,null,null,null,null,null,null,null,null,null,null,null,null,null,null,null,null,null,null,null,null,null,null,null,null,null,null,null,null,null,null,null,null,null,33,"４７７号",12,2,"一般国道",477,1,"現道"]
[null,null,null,22,"RoadSurface",null,null,null,null,null,null,null,null,null,null,null,null,null,null,null,null,null,null,null,null,null,null,null,null,null,null,null,null,null,null,null,null,null,null,null,null,null,34,"（旧）４７７号",12,2,"一般国道",477,2,"旧道"]
[null,null,null,23,"RoadBelow",null,null,null,null,null,null,null,null,null,null,null,null,null,null,null,null,null,null,null,null,null,null,null,null,null,null,null,null,null,null,null,null,null,null,null,null,null,35,"（新）４７７号",12,2,"一般国道",477,3,"新道"]
[null,null,null,24,"照明灯台帳一覧表",null,null,null,null,null,null,null,null,null,null,null,null,null,null,null,null,null,null,null,null,null,null,null,null,null,null,null,null,null,null,null,null,null,null,null,null,null,36,"４７９号",13,2,"一般国道",479,1,"現道"]
[null,null,null,25,"街路樹台帳テンプレート",null,null,null,null,null,null,null,null,null,null,null,null,null,null,null,null,null,null,null,null,null,null,null,null,null,null,null,null,null,null,null,null,null,null,null,null,null,37,"４８０号",14,2,"一般国道",480,1,"現道"]
[null,null,null,26,"路面下空洞調査",null,null,null,null,null,null,null,null,null,null,null,null,null,null,null,null,null,null,null,null,null,null,null,null,null,null,null,null,null,null,null,null,null,null,null,null,null,38,"（旧）４８０号",14,2,"一般国道",480,2,"旧道"]
[null,null,null,27,"路面性状調査",null,null,null,null,null,null,null,null,null,null,null,null,null,null,null,null,null,null,null,null,null,null,null,null,null,null,null,null,null,null,null,null,null,null,null,null,null,39,"（新）４８０号",14,2,"一般国道",480,3,"新道"]
[null,null,null,null,null,null,null,null,null,null,null,null,null,null,null,null,null,null,null,null,null,null,null,null,null,null,null,null,null,null,null,null,null,null,null,null,null,null,null,null,null,null,40,"４８１号",15,2,"一般国道",481,1,"現道"]
[null,null,null,null,null,null,null,null,null,null,null,null,null,null,null,null,null,null,null,null,null,null,null,null,null,null,null,null,null,null,null,null,null,null,null,null,null,null,null,null,null,null,41,"富田林太子線",16,4,"主要地方道",102,1,"現道"]
[null,null,null,null,null,null,null,null,null,null,null,null,null,null,null,null,null,null,null,null,null,null,null,null,null,null,null,null,null,null,null,null,null,null,null,null,null,null,null,null,null,null,42,"枚方亀岡線",17,4,"主要地方道",103,1,"現道"]
[null,null,null,null,null,null,null,null,null,null,null,null,null,null,null,null,null,null,null,null,null,null,null,null,null,null,null,null,null,null,null,null,null,null,null,null,null,null,null,null,null,null,43,"茨木亀岡線",18,4,"主要地方道",104,1,"現道"]
[null,null,null,null,null,null,null,null,null,null,null,null,null,null,null,null,null,null,null,null,null,null,null,null,null,null,null,null,null,null,null,null,null,null,null,null,null,null,null,null,null,null,44,"大阪高槻京都線",19,4,"主要地方道",105,1,"現道"]
[null,null,null,null,null,null,null,null,null,null,null,null,null,null,null,null,null,null,null,null,null,null,null,null,null,null,null,null,null,null,null,null,null,null,null,null,null,null,null,null,null,null,45,"（旧）大阪高槻京都線",19,4,"主要地方道",105,2,"旧道"]
[null,null,null,null,null,null,null,null,null,null,null,null,null,null,null,null,null,null,null,null,null,null,null,null,null,null,null,null,null,null,null,null,null,null,null,null,null,null,null,null,null,null,46,"（新）大阪高槻京都線",19,4,"主要地方道",105,3,"新道"]
[null,null,null,null,null,null,null,null,null,null,null,null,null,null,null,null,null,null,null,null,null,null,null,null,null,null,null,null,null,null,null,null,null,null,null,null,null,null,null,null,null,null,47,"堺大和高田線",20,4,"主要地方道",106,1,"現道"]
[null,null,null,null,null,null,null,null,null,null,null,null,null,null,null,null,null,null,null,null,null,null,null,null,null,null,null,null,null,null,null,null,null,null,null,null,null,null,null,null,null,null,48,"堺富田林線",21,4,"主要地方道",107,1,"現道"]
[null,null,null,null,null,null,null,null,null,null,null,null,null,null,null,null,null,null,null,null,null,null,null,null,null,null,null,null,null,null,null,null,null,null,null,null,null,null,null,null,null,null,49,"八尾枚方線",22,4,"主要地方道",108,1,"現道"]
[null,null,null,null,null,null,null,null,null,null,null,null,null,null,null,null,null,null,null,null,null,null,null,null,null,null,null,null,null,null,null,null,null,null,null,null,null,null,null,null,null,null,51,"枚方富田林泉佐野線",23,4,"主要地方道",109,1,"現道"]
[null,null,null,null,null,null,null,null,null,null,null,null,null,null,null,null,null,null,null,null,null,null,null,null,null,null,null,null,null,null,null,null,null,null,null,null,null,null,null,null,null,null,53,"（旧）枚方富田林泉佐野線",23,4,"主要地方道",109,2,"旧道"]
[null,null,null,null,null,null,null,null,null,null,null,null,null,null,null,null,null,null,null,null,null,null,null,null,null,null,null,null,null,null,null,null,null,null,null,null,null,null,null,null,null,null,54,"（新）枚方富田林泉佐野線",23,4,"主要地方道",109,3,"新道"]
[null,null,null,null,null,null,null,null,null,null,null,null,null,null,null,null,null,null,null,null,null,null,null,null,null,null,null,null,null,null,null,null,null,null,null,null,null,null,null,null,null,null,55,"伊丹豊中線",24,4,"主要地方道",110,1,"現道"]
[null,null,null,null,null,null,null,null,null,null,null,null,null,null,null,null,null,null,null,null,null,null,null,null,null,null,null,null,null,null,null,null,null,null,null,null,null,null,null,null,null,null,56,"大阪和泉泉南線",25,4,"主要地方道",111,1,"現道"]
[null,null,null,null,null,null,null,null,null,null,null,null,null,null,null,null,null,null,null,null,null,null,null,null,null,null,null,null,null,null,null,null,null,null,null,null,null,null,null,null,null,null,57,"（旧）大阪和泉泉南線",25,4,"主要地方道",111,2,"旧道"]
[null,null,null,null,null,null,null,null,null,null,null,null,null,null,null,null,null,null,null,null,null,null,null,null,null,null,null,null,null,null,null,null,null,null,null,null,null,null,null,null,null,null,58,"（新）大阪和泉泉南線",25,4,"主要地方道",111,3,"新道"]
[null,null,null,null,null,null,null,null,null,null,null,null,null,null,null,null,null,null,null,null,null,null,null,null,null,null,null,null,null,null,null,null,null,null,null,null,null,null,null,null,null,null,62,"堺羽曳野線",26,4,"主要地方道",112,1,"現道"]
[null,null,null,null,null,null,null,null,null,null,null,null,null,null,null,null,null,null,null,null,null,null,null,null,null,null,null,null,null,null,null,null,null,null,null,null,null,null,null,null,null,null,63,"（旧）堺羽曳野線",26,4,"主要地方道",112,2,"旧道"]
[null,null,null,null,null,null,null,null,null,null,null,null,null,null,null,null,null,null,null,null,null,null,null,null,null,null,null,null,null,null,null,null,null,null,null,null,null,null,null,null,null,null,64,"（新）堺羽曳野線",26,4,"主要地方道",112,3,"新道"]
[null,null,null,null,null,null,null,null,null,null,null,null,null,null,null,null,null,null,null,null,null,null,null,null,null,null,null,null,null,null,null,null,null,null,null,null,null,null,null,null,null,null,65,"泉佐野打田線",27,4,"主要地方道",114,1,"現道"]
[null,null,null,null,null,null,null,null,null,null,null,null,null,null,null,null,null,null,null,null,null,null,null,null,null,null,null,null,null,null,null,null,null,null,null,null,null,null,null,null,null,null,69,"（旧）泉佐野打田線",27,4,"主要地方道",114,2,"旧道"]
[null,null,null,null,null,null,null,null,null,null,null,null,null,null,null,null,null,null,null,null,null,null,null,null,null,null,null,null,null,null,null,null,null,null,null,null,null,null,null,null,null,null,70,"（新）泉佐野打田線",27,4,"主要地方道",114,3,"新道"]
[null,null,null,null,null,null,null,null,null,null,null,null,null,null,null,null,null,null,null,null,null,null,null,null,null,null,null,null,null,null,null,null,null,null,null,null,null,null,null,null,null,null,71,"泉佐野岩出線",28,4,"主要地方道",115,1,"現道"]
[null,null,null,null,null,null,null,null,null,null,null,null,null,null,null,null,null,null,null,null,null,null,null,null,null,null,null,null,null,null,null,null,null,null,null,null,null,null,null,null,null,null,72,"（旧）泉佐野岩出線",28,4,"主要地方道",115,2,"旧道"]
[null,null,null,null,null,null,null,null,null,null,null,null,null,null,null,null,null,null,null,null,null,null,null,null,null,null,null,null,null,null,null,null,null,null,null,null,null,null,null,null,null,null,73,"（新）泉佐野岩出線",28,4,"主要地方道",115,3,"新道"]
[null,null,null,null,null,null,null,null,null,null,null,null,null,null,null,null,null,null,null,null,null,null,null,null,null,null,null,null,null,null,null,null,null,null,null,null,null,null,null,null,null,null,74,"大阪国際空港線",29,4,"主要地方道",116,1,"現道"]
[null,null,null,null,null,null,null,null,null,null,null,null,null,null,null,null,null,null,null,null,null,null,null,null,null,null,null,null,null,null,null,null,null,null,null,null,null,null,null,null,null,null,75,"（旧）大阪国際空港線",29,4,"主要地方道",116,2,"旧道"]
[null,null,null,null,null,null,null,null,null,null,null,null,null,null,null,null,null,null,null,null,null,null,null,null,null,null,null,null,null,null,null,null,null,null,null,null,null,null,null,null,null,null,76,"（新）大阪国際空港線",29,4,"主要地方道",116,3,"新道"]
[null,null,null,null,null,null,null,null,null,null,null,null,null,null,null,null,null,null,null,null,null,null,null,null,null,null,null,null,null,null,null,null,null,null,null,null,null,null,null,null,null,null,77,"大阪生駒線",30,4,"主要地方道",118,1,"現道"]
[null,null,null,null,null,null,null,null,null,null,null,null,null,null,null,null,null,null,null,null,null,null,null,null,null,null,null,null,null,null,null,null,null,null,null,null,null,null,null,null,null,null,78,"（新）大阪生駒線",30,4,"主要地方道",118,3,"新道"]
[null,null,null,null,null,null,null,null,null,null,null,null,null,null,null,null,null,null,null,null,null,null,null,null,null,null,null,null,null,null,null,null,null,null,null,null,null,null,null,null,null,null,79,"大阪池田線",31,4,"主要地方道",120,1,"現道"]
[null,null,null,null,null,null,null,null,null,null,null,null,null,null,null,null,null,null,null,null,null,null,null,null,null,null,null,null,null,null,null,null,null,null,null,null,null,null,null,null,null,null,80,"（旧）大阪池田線",31,4,"主要地方道",120,2,"旧道"]
[null,null,null,null,null,null,null,null,null,null,null,null,null,null,null,null,null,null,null,null,null,null,null,null,null,null,null,null,null,null,null,null,null,null,null,null,null,null,null,null,null,null,81,"（新）大阪池田線",31,4,"主要地方道",120,3,"新道"]
[null,null,null,null,null,null,null,null,null,null,null,null,null,null,null,null,null,null,null,null,null,null,null,null,null,null,null,null,null,null,null,null,null,null,null,null,null,null,null,null,null,null,82,"豊中亀岡線",32,4,"主要地方道",121,1,"現道"]
[null,null,null,null,null,null,null,null,null,null,null,null,null,null,null,null,null,null,null,null,null,null,null,null,null,null,null,null,null,null,null,null,null,null,null,null,null,null,null,null,null,null,86,"（旧）豊中亀岡線",32,4,"主要地方道",121,2,"旧道"]
[null,null,null,null,null,null,null,null,null,null,null,null,null,null,null,null,null,null,null,null,null,null,null,null,null,null,null,null,null,null,null,null,null,null,null,null,null,null,null,null,null,null,87,"（新）豊中亀岡線",32,4,"主要地方道",121,3,"新道"]
[null,null,null,null,null,null,null,null,null,null,null,null,null,null,null,null,null,null,null,null,null,null,null,null,null,null,null,null,null,null,null,null,null,null,null,null,null,null,null,null,null,null,88,"大阪中央環状線",33,4,"主要地方道",123,1,"現道"]
[null,null,null,null,null,null,null,null,null,null,null,null,null,null,null,null,null,null,null,null,null,null,null,null,null,null,null,null,null,null,null,null,null,null,null,null,null,null,null,null,null,null,92,"（旧）大阪中央環状線",33,4,"主要地方道",123,2,"旧道"]
[null,null,null,null,null,null,null,null,null,null,null,null,null,null,null,null,null,null,null,null,null,null,null,null,null,null,null,null,null,null,null,null,null,null,null,null,null,null,null,null,null,null,93,"（新）大阪中央環状線",33,4,"主要地方道",123,3,"新道"]
[null,null,null,null,null,null,null,null,null,null,null,null,null,null,null,null,null,null,null,null,null,null,null,null,null,null,null,null,null,null,null,null,null,null,null,null,null,null,null,null,null,null,94,"茨木寝屋川線",34,4,"主要地方道",126,1,"現道"]
[null,null,null,null,null,null,null,null,null,null,null,null,null,null,null,null,null,null,null,null,null,null,null,null,null,null,null,null,null,null,null,null,null,null,null,null,null,null,null,null,null,null,95,"（旧）茨木寝屋川線",34,4,"主要地方道",126,2,"旧道"]
[null,null,null,null,null,null,null,null,null,null,null,null,null,null,null,null,null,null,null,null,null,null,null,null,null,null,null,null,null,null,null,null,null,null,null,null,null,null,null,null,null,null,96,"（新）茨木寝屋川線",34,4,"主要地方道",126,3,"新道"]
[null,null,null,null,null,null,null,null,null,null,null,null,null,null,null,null,null,null,null,null,null,null,null,null,null,null,null,null,null,null,null,null,null,null,null,null,null,null,null,null,null,null,97,"大阪高槻線",35,4,"主要地方道",127,1,"現道"]
[null,null,null,null,null,null,null,null,null,null,null,null,null,null,null,null,null,null,null,null,null,null,null,null,null,null,null,null,null,null,null,null,null,null,null,null,null,null,null,null,null,null,98,"枚方交野寝屋川線",36,4,"主要地方道",128,1,"現道"]
[null,null,null,null,null,null,null,null,null,null,null,null,null,null,null,null,null,null,null,null,null,null,null,null,null,null,null,null,null,null,null,null,null,null,null,null,null,null,null,null,null,null,100,"（旧）枚方交野寝屋川線",36,4,"主要地方道",128,2,"旧道"]
[null,null,null,null,null,null,null,null,null,null,null,null,null,null,null,null,null,null,null,null,null,null,null,null,null,null,null,null,null,null,null,null,null,null,null,null,null,null,null,null,null,null,101,"（新）枚方交野寝屋川線",36,4,"主要地方道",128,3,"新道"]
[null,null,null,null,null,null,null,null,null,null,null,null,null,null,null,null,null,null,null,null,null,null,null,null,null,null,null,null,null,null,null,null,null,null,null,null,null,null,null,null,null,null,102,"大阪高石線",37,4,"主要地方道",129,1,"現道"]
[null,null,null,null,null,null,null,null,null,null,null,null,null,null,null,null,null,null,null,null,null,null,null,null,null,null,null,null,null,null,null,null,null,null,null,null,null,null,null,null,null,null,103,"（旧）大阪高石線",37,4,"主要地方道",129,2,"旧道"]
[null,null,null,null,null,null,null,null,null,null,null,null,null,null,null,null,null,null,null,null,null,null,null,null,null,null,null,null,null,null,null,null,null,null,null,null,null,null,null,null,null,null,104,"（新）大阪高石線",37,4,"主要地方道",129,3,"新道"]
[null,null,null,null,null,null,null,null,null,null,null,null,null,null,null,null,null,null,null,null,null,null,null,null,null,null,null,null,null,null,null,null,null,null,null,null,null,null,null,null,null,null,105,"大阪臨海線",38,4,"主要地方道",130,1,"現道"]
[null,null,null,null,null,null,null,null,null,null,null,null,null,null,null,null,null,null,null,null,null,null,null,null,null,null,null,null,null,null,null,null,null,null,null,null,null,null,null,null,null,null,106,"（旧）大阪臨海線",38,4,"主要地方道",130,2,"旧道"]
[null,null,null,null,null,null,null,null,null,null,null,null,null,null,null,null,null,null,null,null,null,null,null,null,null,null,null,null,null,null,null,null,null,null,null,null,null,null,null,null,null,null,108,"（新）大阪臨海線",38,4,"主要地方道",130,3,"新道"]
[null,null,null,null,null,null,null,null,null,null,null,null,null,null,null,null,null,null,null,null,null,null,null,null,null,null,null,null,null,null,null,null,null,null,null,null,null,null,null,null,null,null,109,"茨木能勢線",39,4,"主要地方道",131,1,"現道"]
[null,null,null,null,null,null,null,null,null,null,null,null,null,null,null,null,null,null,null,null,null,null,null,null,null,null,null,null,null,null,null,null,null,null,null,null,null,null,null,null,null,null,110,"（旧）茨木能勢線",39,4,"主要地方道",131,2,"旧道"]
[null,null,null,null,null,null,null,null,null,null,null,null,null,null,null,null,null,null,null,null,null,null,null,null,null,null,null,null,null,null,null,null,null,null,null,null,null,null,null,null,null,null,111,"（新）茨木能勢線",39,4,"主要地方道",131,3,"新道"]
[null,null,null,null,null,null,null,null,null,null,null,null,null,null,null,null,null,null,null,null,null,null,null,null,null,null,null,null,null,null,null,null,null,null,null,null,null,null,null,null,null,null,112,"京都守口線",40,4,"主要地方道",132,1,"現道"]
[null,null,null,null,null,null,null,null,null,null,null,null,null,null,null,null,null,null,null,null,null,null,null,null,null,null,null,null,null,null,null,null,null,null,null,null,null,null,null,null,null,null,119,"（旧）京都守口線",40,4,"主要地方道",132,2,"旧道"]
[null,null,null,null,null,null,null,null,null,null,null,null,null,null,null,null,null,null,null,null,null,null,null,null,null,null,null,null,null,null,null,null,null,null,null,null,null,null,null,null,null,null,120,"（新）京都守口線",40,4,"主要地方道",132,3,"新道"]
[null,null,null,null,null,null,null,null,null,null,null,null,null,null,null,null,null,null,null,null,null,null,null,null,null,null,null,null,null,null,null,null,null,null,null,null,null,null,null,null,null,null,121,"堺かつらぎ線",41,4,"主要地方道",133,1,"現道"]
[null,null,null,null,null,null,null,null,null,null,null,null,null,null,null,null,null,null,null,null,null,null,null,null,null,null,null,null,null,null,null,null,null,null,null,null,null,null,null,null,null,null,122,"泉大津美原線",42,4,"主要地方道",134,1,"現道"]
[null,null,null,null,null,null,null,null,null,null,null,null,null,null,null,null,null,null,null,null,null,null,null,null,null,null,null,null,null,null,null,null,null,null,null,null,null,null,null,null,null,null,123,"（旧）泉大津美原線",42,4,"主要地方道",134,2,"旧道"]
[null,null,null,null,null,null,null,null,null,null,null,null,null,null,null,null,null,null,null,null,null,null,null,null,null,null,null,null,null,null,null,null,null,null,null,null,null,null,null,null,null,null,126,"（新）泉大津美原線",42,4,"主要地方道",134,3,"新道"]
[null,null,null,null,null,null,null,null,null,null,null,null,null,null,null,null,null,null,null,null,null,null,null,null,null,null,null,null,null,null,null,null,null,null,null,null,null,null,null,null,null,null,127,"岬加太港線",43,4,"主要地方道",135,1,"現道"]
[null,null,null,null,null,null,null,null,null,null,null,null,null,null,null,null,null,null,null,null,null,null,null,null,null,null,null,null,null,null,null,null,null,null,null,null,null,null,null,null,null,null,128,"（旧）岬加太港線",43,4,"主要地方道",135,2,"旧道"]
[null,null,null,null,null,null,null,null,null,null,null,null,null,null,null,null,null,null,null,null,null,null,null,null,null,null,null,null,null,null,null,null,null,null,null,null,null,null,null,null,null,null,129,"（新）岬加太港線",43,4,"主要地方道",135,3,"新道"]
[null,null,null,null,null,null,null,null,null,null,null,null,null,null,null,null,null,null,null,null,null,null,null,null,null,null,null,null,null,null,null,null,null,null,null,null,null,null,null,null,null,null,130,"柏原駒ケ谷千早赤阪線",44,4,"主要地方道",145,1,"現道"]
[null,null,null,null,null,null,null,null,null,null,null,null,null,null,null,null,null,null,null,null,null,null,null,null,null,null,null,null,null,null,null,null,null,null,null,null,null,null,null,null,null,null,131,"園部能勢線",45,4,"主要地方道",146,1,"現道"]
[null,null,null,null,null,null,null,null,null,null,null,null,null,null,null,null,null,null,null,null,null,null,null,null,null,null,null,null,null,null,null,null,null,null,null,null,null,null,null,null,null,null,132,"箕面池田線",46,4,"主要地方道",153,1,"現道"]
[null,null,null,null,null,null,null,null,null,null,null,null,null,null,null,null,null,null,null,null,null,null,null,null,null,null,null,null,null,null,null,null,null,null,null,null,null,null,null,null,null,null,133,"枚方大和郡山線",47,4,"主要地方道",154,1,"現道"]
[null,null,null,null,null,null,null,null,null,null,null,null,null,null,null,null,null,null,null,null,null,null,null,null,null,null,null,null,null,null,null,null,null,null,null,null,null,null,null,null,null,null,134,"（新）枚方大和郡山線",47,4,"主要地方道",154,3,"新道"]
[null,null,null,null,null,null,null,null,null,null,null,null,null,null,null,null,null,null,null,null,null,null,null,null,null,null,null,null,null,null,null,null,null,null,null,null,null,null,null,null,null,null,135,"大阪狭山線",48,4,"主要地方道",155,1,"現道"]
[null,null,null,null,null,null,null,null,null,null,null,null,null,null,null,null,null,null,null,null,null,null,null,null,null,null,null,null,null,null,null,null,null,null,null,null,null,null,null,null,null,null,136,"（旧）大阪狭山線",48,4,"主要地方道",155,2,"旧道"]
[null,null,null,null,null,null,null,null,null,null,null,null,null,null,null,null,null,null,null,null,null,null,null,null,null,null,null,null,null,null,null,null,null,null,null,null,null,null,null,null,null,null,137,"（新）大阪狭山線",48,4,"主要地方道",155,3,"新道"]
[null,null,null,null,null,null,null,null,null,null,null,null,null,null,null,null,null,null,null,null,null,null,null,null,null,null,null,null,null,null,null,null,null,null,null,null,null,null,null,null,null,null,138,"美原太子線",49,4,"主要地方道",156,1,"現道"]
[null,null,null,null,null,null,null,null,null,null,null,null,null,null,null,null,null,null,null,null,null,null,null,null,null,null,null,null,null,null,null,null,null,null,null,null,null,null,null,null,null,null,139,"（旧）美原太子線",49,4,"主要地方道",156,2,"旧道"]
[null,null,null,null,null,null,null,null,null,null,null,null,null,null,null,null,null,null,null,null,null,null,null,null,null,null,null,null,null,null,null,null,null,null,null,null,null,null,null,null,null,null,140,"（新）美原太子線",49,4,"主要地方道",156,3,"新道"]
[null,null,null,null,null,null,null,null,null,null,null,null,null,null,null,null,null,null,null,null,null,null,null,null,null,null,null,null,null,null,null,null,null,null,null,null,null,null,null,null,null,null,141,"岸和田牛滝山貝塚線",50,4,"主要地方道",158,1,"現道"]
[null,null,null,null,null,null,null,null,null,null,null,null,null,null,null,null,null,null,null,null,null,null,null,null,null,null,null,null,null,null,null,null,null,null,null,null,null,null,null,null,null,null,145,"（旧）岸和田牛滝山貝塚線",50,4,"主要地方道",158,2,"旧道"]
[null,null,null,null,null,null,null,null,null,null,null,null,null,null,null,null,null,null,null,null,null,null,null,null,null,null,null,null,null,null,null,null,null,null,null,null,null,null,null,null,null,null,146,"（新）岸和田牛滝山貝塚線",50,4,"主要地方道",158,3,"新道"]
[null,null,null,null,null,null,null,null,null,null,null,null,null,null,null,null,null,null,null,null,null,null,null,null,null,null,null,null,null,null,null,null,null,null,null,null,null,null,null,null,null,null,147,"八尾茨木線",51,4,"主要地方道",159,1,"現道"]
[null,null,null,null,null,null,null,null,null,null,null,null,null,null,null,null,null,null,null,null,null,null,null,null,null,null,null,null,null,null,null,null,null,null,null,null,null,null,null,null,null,null,153,"（旧）八尾茨木線",51,4,"主要地方道",159,2,"旧道"]
[null,null,null,null,null,null,null,null,null,null,null,null,null,null,null,null,null,null,null,null,null,null,null,null,null,null,null,null,null,null,null,null,null,null,null,null,null,null,null,null,null,null,154,"（新）八尾茨木線",51,4,"主要地方道",159,3,"新道"]
[null,null,null,null,null,null,null,null,null,null,null,null,null,null,null,null,null,null,null,null,null,null,null,null,null,null,null,null,null,null,null,null,null,null,null,null,null,null,null,null,null,null,155,"大阪東大阪線",52,4,"主要地方道",160,1,"現道"]
[null,null,null,null,null,null,null,null,null,null,null,null,null,null,null,null,null,null,null,null,null,null,null,null,null,null,null,null,null,null,null,null,null,null,null,null,null,null,null,null,null,null,156,"堺狭山線",53,4,"主要地方道",161,1,"現道"]
[null,null,null,null,null,null,null,null,null,null,null,null,null,null,null,null,null,null,null,null,null,null,null,null,null,null,null,null,null,null,null,null,null,null,null,null,null,null,null,null,null,null,157,"枚方高槻線",54,4,"主要地方道",162,1,"現道"]
[null,null,null,null,null,null,null,null,null,null,null,null,null,null,null,null,null,null,null,null,null,null,null,null,null,null,null,null,null,null,null,null,null,null,null,null,null,null,null,null,null,null,158,"（新）枚方高槻線",54,4,"主要地方道",162,3,"新道"]
[null,null,null,null,null,null,null,null,null,null,null,null,null,null,null,null,null,null,null,null,null,null,null,null,null,null,null,null,null,null,null,null,null,null,null,null,null,null,null,null,null,null,159,"茨木摂津線",55,4,"主要地方道",178,1,"現道"]
[null,null,null,null,null,null,null,null,null,null,null,null,null,null,null,null,null,null,null,null,null,null,null,null,null,null,null,null,null,null,null,null,null,null,null,null,null,null,null,null,null,null,165,"伏見柳谷高槻線",56,4,"主要地方道",179,1,"現道"]
[null,null,null,null,null,null,null,null,null,null,null,null,null,null,null,null,null,null,null,null,null,null,null,null,null,null,null,null,null,null,null,null,null,null,null,null,null,null,null,null,null,null,166,"（旧）伏見柳谷高槻線",56,4,"主要地方道",179,2,"旧道"]
[null,null,null,null,null,null,null,null,null,null,null,null,null,null,null,null,null,null,null,null,null,null,null,null,null,null,null,null,null,null,null,null,null,null,null,null,null,null,null,null,null,null,167,"（新）伏見柳谷高槻線",56,4,"主要地方道",179,3,"新道"]
[null,null,null,null,null,null,null,null,null,null,null,null,null,null,null,null,null,null,null,null,null,null,null,null,null,null,null,null,null,null,null,null,null,null,null,null,null,null,null,null,null,null,168,"西京高槻線",57,4,"主要地方道",180,1,"現道"]
[null,null,null,null,null,null,null,null,null,null,null,null,null,null,null,null,null,null,null,null,null,null,null,null,null,null,null,null,null,null,null,null,null,null,null,null,null,null,null,null,null,null,169,"枚方山城線",58,4,"主要地方道",181,1,"現道"]
[null,null,null,null,null,null,null,null,null,null,null,null,null,null,null,null,null,null,null,null,null,null,null,null,null,null,null,null,null,null,null,null,null,null,null,null,null,null,null,null,null,null,170,"大阪港八尾線",59,4,"主要地方道",182,1,"現道"]
[null,null,null,null,null,null,null,null,null,null,null,null,null,null,null,null,null,null,null,null,null,null,null,null,null,null,null,null,null,null,null,null,null,null,null,null,null,null,null,null,null,null,171,"富田林泉大津線",60,4,"主要地方道",183,1,"現道"]
[null,null,null,null,null,null,null,null,null,null,null,null,null,null,null,null,null,null,null,null,null,null,null,null,null,null,null,null,null,null,null,null,null,null,null,null,null,null,null,null,null,null,172,"（旧）富田林泉大津線",60,4,"主要地方道",183,2,"旧道"]
[null,null,null,null,null,null,null,null,null,null,null,null,null,null,null,null,null,null,null,null,null,null,null,null,null,null,null,null,null,null,null,null,null,null,null,null,null,null,null,null,null,null,175,"（新）富田林泉大津線",60,4,"主要地方道",183,3,"新道"]
[null,null,null,null,null,null,null,null,null,null,null,null,null,null,null,null,null,null,null,null,null,null,null,null,null,null,null,null,null,null,null,null,null,null,null,null,null,null,null,null,null,null,176,"岸和田港塔原線",61,4,"主要地方道",184,1,"現道"]
[null,null,null,null,null,null,null,null,null,null,null,null,null,null,null,null,null,null,null,null,null,null,null,null,null,null,null,null,null,null,null,null,null,null,null,null,null,null,null,null,null,null,177,"和歌山貝塚線",62,4,"主要地方道",185,1,"現道"]
[null,null,null,null,null,null,null,null,null,null,null,null,null,null,null,null,null,null,null,null,null,null,null,null,null,null,null,null,null,null,null,null,null,null,null,null,null,null,null,null,null,null,178,"能勢猪名川線",63,3,"一般府道",201,1,"現道"]
[null,null,null,null,null,null,null,null,null,null,null,null,null,null,null,null,null,null,null,null,null,null,null,null,null,null,null,null,null,null,null,null,null,null,null,null,null,null,null,null,null,null,179,"亀岡能勢線",64,3,"一般府道",202,1,"現道"]
[null,null,null,null,null,null,null,null,null,null,null,null,null,null,null,null,null,null,null,null,null,null,null,null,null,null,null,null,null,null,null,null,null,null,null,null,null,null,null,null,null,null,180,"伊丹池田線",65,3,"一般府道",204,1,"現道"]
[null,null,null,null,null,null,null,null,null,null,null,null,null,null,null,null,null,null,null,null,null,null,null,null,null,null,null,null,null,null,null,null,null,null,null,null,null,null,null,null,null,null,183,"（旧）伊丹池田線",65,3,"一般府道",204,2,"旧道"]
[null,null,null,null,null,null,null,null,null,null,null,null,null,null,null,null,null,null,null,null,null,null,null,null,null,null,null,null,null,null,null,null,null,null,null,null,null,null,null,null,null,null,184,"（新）伊丹池田線",65,3,"一般府道",204,3,"新道"]
[null,null,null,null,null,null,null,null,null,null,null,null,null,null,null,null,null,null,null,null,null,null,null,null,null,null,null,null,null,null,null,null,null,null,null,null,null,null,null,null,null,null,185,"西宮豊中線",66,3,"一般府道",205,1,"現道"]
[null,null,null,null,null,null,null,null,null,null,null,null,null,null,null,null,null,null,null,null,null,null,null,null,null,null,null,null,null,null,null,null,null,null,null,null,null,null,null,null,null,null,186,"豊中摂津線",67,3,"一般府道",206,1,"現道"]
[null,null,null,null,null,null,null,null,null,null,null,null,null,null,null,null,null,null,null,null,null,null,null,null,null,null,null,null,null,null,null,null,null,null,null,null,null,null,null,null,null,null,187,"箕面摂津線",68,3,"一般府道",207,1,"現道"]
[null,null,null,null,null,null,null,null,null,null,null,null,null,null,null,null,null,null,null,null,null,null,null,null,null,null,null,null,null,null,null,null,null,null,null,null,null,null,null,null,null,null,188,"吹田箕面線",69,3,"一般府道",208,1,"現道"]
[null,null,null,null,null,null,null,null,null,null,null,null,null,null,null,null,null,null,null,null,null,null,null,null,null,null,null,null,null,null,null,null,null,null,null,null,null,null,null,null,null,null,189,"枚方茨木線",70,3,"一般府道",209,1,"現道"]
[null,null,null,null,null,null,null,null,null,null,null,null,null,null,null,null,null,null,null,null,null,null,null,null,null,null,null,null,null,null,null,null,null,null,null,null,null,null,null,null,null,null,190,"交野久御山線",71,3,"一般府道",211,1,"現道"]
[null,null,null,null,null,null,null,null,null,null,null,null,null,null,null,null,null,null,null,null,null,null,null,null,null,null,null,null,null,null,null,null,null,null,null,null,null,null,null,null,null,null,191,"（旧）交野久御山線",71,3,"一般府道",211,2,"旧道"]
[null,null,null,null,null,null,null,null,null,null,null,null,null,null,null,null,null,null,null,null,null,null,null,null,null,null,null,null,null,null,null,null,null,null,null,null,null,null,null,null,null,null,192,"（新）交野久御山線",71,3,"一般府道",211,3,"新道"]
[null,null,null,null,null,null,null,null,null,null,null,null,null,null,null,null,null,null,null,null,null,null,null,null,null,null,null,null,null,null,null,null,null,null,null,null,null,null,null,null,null,null,193,"大東四条畷線",72,3,"一般府道",213,1,"現道"]
[null,null,null,null,null,null,null,null,null,null,null,null,null,null,null,null,null,null,null,null,null,null,null,null,null,null,null,null,null,null,null,null,null,null,null,null,null,null,null,null,null,null,195,"守口門真線",73,3,"一般府道",214,1,"現道"]
[null,null,null,null,null,null,null,null,null,null,null,null,null,null,null,null,null,null,null,null,null,null,null,null,null,null,null,null,null,null,null,null,null,null,null,null,null,null,null,null,null,null,196,"大阪八尾線",74,3,"一般府道",215,1,"現道"]
[null,null,null,null,null,null,null,null,null,null,null,null,null,null,null,null,null,null,null,null,null,null,null,null,null,null,null,null,null,null,null,null,null,null,null,null,null,null,null,null,null,null,197,"大阪羽曳野線",75,3,"一般府道",217,1,"現道"]
[null,null,null,null,null,null,null,null,null,null,null,null,null,null,null,null,null,null,null,null,null,null,null,null,null,null,null,null,null,null,null,null,null,null,null,null,null,null,null,null,null,null,198,"八尾道明寺線",76,3,"一般府道",218,1,"現道"]
[null,null,null,null,null,null,null,null,null,null,null,null,null,null,null,null,null,null,null,null,null,null,null,null,null,null,null,null,null,null,null,null,null,null,null,null,null,null,null,null,null,null,199,"住吉八尾線",77,3,"一般府道",220,1,"現道"]
[null,null,null,null,null,null,null,null,null,null,null,null,null,null,null,null,null,null,null,null,null,null,null,null,null,null,null,null,null,null,null,null,null,null,null,null,null,null,null,null,null,null,200,"香芝太子線",78,3,"一般府道",221,1,"現道"]
[null,null,null,null,null,null,null,null,null,null,null,null,null,null,null,null,null,null,null,null,null,null,null,null,null,null,null,null,null,null,null,null,null,null,null,null,null,null,null,null,null,null,201,"河内長野美原線",79,3,"一般府道",223,1,"現道"]
[null,null,null,null,null,null,null,null,null,null,null,null,null,null,null,null,null,null,null,null,null,null,null,null,null,null,null,null,null,null,null,null,null,null,null,null,null,null,null,null,null,null,202,"富田林狭山線",80,3,"一般府道",224,1,"現道"]
[null,null,null,null,null,null,null,null,null,null,null,null,null,null,null,null,null,null,null,null,null,null,null,null,null,null,null,null,null,null,null,null,null,null,null,null,null,null,null,null,null,null,203,"河内長野かつらぎ線",81,3,"一般府道",225,1,"現道"]
[null,null,null,null,null,null,null,null,null,null,null,null,null,null,null,null,null,null,null,null,null,null,null,null,null,null,null,null,null,null,null,null,null,null,null,null,null,null,null,null,null,null,204,"河内長野千早城跡線",82,3,"一般府道",226,1,"現道"]
[null,null,null,null,null,null,null,null,null,null,null,null,null,null,null,null,null,null,null,null,null,null,null,null,null,null,null,null,null,null,null,null,null,null,null,null,null,null,null,null,null,null,205,"（旧）河内長野千早城跡線",82,3,"一般府道",226,2,"旧道"]
[null,null,null,null,null,null,null,null,null,null,null,null,null,null,null,null,null,null,null,null,null,null,null,null,null,null,null,null,null,null,null,null,null,null,null,null,null,null,null,null,null,null,206,"（新）河内長野千早城跡線",82,3,"一般府道",226,3,"新道"]
[null,null,null,null,null,null,null,null,null,null,null,null,null,null,null,null,null,null,null,null,null,null,null,null,null,null,null,null,null,null,null,null,null,null,null,null,null,null,null,null,null,null,207,"柚原向日線",83,3,"一般府道",230,1,"現道"]
[null,null,null,null,null,null,null,null,null,null,null,null,null,null,null,null,null,null,null,null,null,null,null,null,null,null,null,null,null,null,null,null,null,null,null,null,null,null,null,null,null,null,208,"木屋交野線",84,3,"一般府道",234,1,"現道"]
[null,null,null,null,null,null,null,null,null,null,null,null,null,null,null,null,null,null,null,null,null,null,null,null,null,null,null,null,null,null,null,null,null,null,null,null,null,null,null,null,null,null,209,"深野南寺方大阪線",85,3,"一般府道",236,1,"現道"]
[null,null,null,null,null,null,null,null,null,null,null,null,null,null,null,null,null,null,null,null,null,null,null,null,null,null,null,null,null,null,null,null,null,null,null,null,null,null,null,null,null,null,210,"石切大阪線",86,3,"一般府道",237,1,"現道"]
[null,null,null,null,null,null,null,null,null,null,null,null,null,null,null,null,null,null,null,null,null,null,null,null,null,null,null,null,null,null,null,null,null,null,null,null,null,null,null,null,null,null,211,"（新）石切大阪線",86,3,"一般府道",237,3,"新道"]
[null,null,null,null,null,null,null,null,null,null,null,null,null,null,null,null,null,null,null,null,null,null,null,null,null,null,null,null,null,null,null,null,null,null,null,null,null,null,null,null,null,null,212,"平尾鳳停車場線",87,3,"一般府道",241,1,"現道"]
[null,null,null,null,null,null,null,null,null,null,null,null,null,null,null,null,null,null,null,null,null,null,null,null,null,null,null,null,null,null,null,null,null,null,null,null,null,null,null,null,null,null,213,"鳥取吉見泉佐野線",88,3,"一般府道",243,1,"現道"]
[null,null,null,null,null,null,null,null,null,null,null,null,null,null,null,null,null,null,null,null,null,null,null,null,null,null,null,null,null,null,null,null,null,null,null,null,null,null,null,null,null,null,214,"堺港線",89,3,"一般府道",245,1,"現道"]
[null,null,null,null,null,null,null,null,null,null,null,null,null,null,null,null,null,null,null,null,null,null,null,null,null,null,null,null,null,null,null,null,null,null,null,null,null,null,null,null,null,null,215,"大津港線",90,3,"一般府道",246,1,"現道"]
[null,null,null,null,null,null,null,null,null,null,null,null,null,null,null,null,null,null,null,null,null,null,null,null,null,null,null,null,null,null,null,null,null,null,null,null,null,null,null,null,null,null,216,"絹延橋停車場線",91,3,"一般府道",248,1,"現道"]
[null,null,null,null,null,null,null,null,null,null,null,null,null,null,null,null,null,null,null,null,null,null,null,null,null,null,null,null,null,null,null,null,null,null,null,null,null,null,null,null,null,null,217,"岡町停車場線",92,3,"一般府道",249,1,"現道"]
[null,null,null,null,null,null,null,null,null,null,null,null,null,null,null,null,null,null,null,null,null,null,null,null,null,null,null,null,null,null,null,null,null,null,null,null,null,null,null,null,null,null,218,"曽根停車場線",93,3,"一般府道",250,1,"現道"]
[null,null,null,null,null,null,null,null,null,null,null,null,null,null,null,null,null,null,null,null,null,null,null,null,null,null,null,null,null,null,null,null,null,null,null,null,null,null,null,null,null,null,219,"桜井停車場線",94,3,"一般府道",252,1,"現道"]
[null,null,null,null,null,null,null,null,null,null,null,null,null,null,null,null,null,null,null,null,null,null,null,null,null,null,null,null,null,null,null,null,null,null,null,null,null,null,null,null,null,null,220,"高槻停車場線",95,3,"一般府道",253,1,"現道"]
[null,null,null,null,null,null,null,null,null,null,null,null,null,null,null,null,null,null,null,null,null,null,null,null,null,null,null,null,null,null,null,null,null,null,null,null,null,null,null,null,null,null,221,"摂津富田停車場線",96,3,"一般府道",254,1,"現道"]
[null,null,null,null,null,null,null,null,null,null,null,null,null,null,null,null,null,null,null,null,null,null,null,null,null,null,null,null,null,null,null,null,null,null,null,null,null,null,null,null,null,null,222,"茨木停車場線",97,3,"一般府道",255,1,"現道"]
[null,null,null,null,null,null,null,null,null,null,null,null,null,null,null,null,null,null,null,null,null,null,null,null,null,null,null,null,null,null,null,null,null,null,null,null,null,null,null,null,null,null,223,"吹田停車場線",98,3,"一般府道",256,1,"現道"]
[null,null,null,null,null,null,null,null,null,null,null,null,null,null,null,null,null,null,null,null,null,null,null,null,null,null,null,null,null,null,null,null,null,null,null,null,null,null,null,null,null,null,224,"高槻市停車場線",99,3,"一般府道",257,1,"現道"]
[null,null,null,null,null,null,null,null,null,null,null,null,null,null,null,null,null,null,null,null,null,null,null,null,null,null,null,null,null,null,null,null,null,null,null,null,null,null,null,null,null,null,225,"総持寺停車場線",100,3,"一般府道",258,1,"現道"]
[null,null,null,null,null,null,null,null,null,null,null,null,null,null,null,null,null,null,null,null,null,null,null,null,null,null,null,null,null,null,null,null,null,null,null,null,null,null,null,null,null,null,226,"正雀停車場線",101,3,"一般府道",259,1,"現道"]
[null,null,null,null,null,null,null,null,null,null,null,null,null,null,null,null,null,null,null,null,null,null,null,null,null,null,null,null,null,null,null,null,null,null,null,null,null,null,null,null,null,null,227,"相川停車場線",102,3,"一般府道",260,1,"現道"]
[null,null,null,null,null,null,null,null,null,null,null,null,null,null,null,null,null,null,null,null,null,null,null,null,null,null,null,null,null,null,null,null,null,null,null,null,null,null,null,null,null,null,228,"鴻池新田停車場線",103,3,"一般府道",261,3,"新道"]
[null,null,null,null,null,null,null,null,null,null,null,null,null,null,null,null,null,null,null,null,null,null,null,null,null,null,null,null,null,null,null,null,null,null,null,null,null,null,null,null,null,null,229,"鴻池新田停車場鴻池線",104,3,"一般府道",262,3,"新道"]
[null,null,null,null,null,null,null,null,null,null,null,null,null,null,null,null,null,null,null,null,null,null,null,null,null,null,null,null,null,null,null,null,null,null,null,null,null,null,null,null,null,null,230,"住道停車場線",105,3,"一般府道",263,1,"現道"]
[null,null,null,null,null,null,null,null,null,null,null,null,null,null,null,null,null,null,null,null,null,null,null,null,null,null,null,null,null,null,null,null,null,null,null,null,null,null,null,null,null,null,231,"野崎停車場線",106,3,"一般府道",264,1,"現道"]
[null,null,null,null,null,null,null,null,null,null,null,null,null,null,null,null,null,null,null,null,null,null,null,null,null,null,null,null,null,null,null,null,null,null,null,null,null,null,null,null,null,null,232,"四条畷停車場線",107,3,"一般府道",265,1,"現道"]
[null,null,null,null,null,null,null,null,null,null,null,null,null,null,null,null,null,null,null,null,null,null,null,null,null,null,null,null,null,null,null,null,null,null,null,null,null,null,null,null,null,null,233,"星田停車場線",108,3,"一般府道",266,1,"現道"]
[null,null,null,null,null,null,null,null,null,null,null,null,null,null,null,null,null,null,null,null,null,null,null,null,null,null,null,null,null,null,null,null,null,null,null,null,null,null,null,null,null,null,234,"布施停車場線",109,3,"一般府道",267,1,"現道"]
[null,null,null,null,null,null,null,null,null,null,null,null,null,null,null,null,null,null,null,null,null,null,null,null,null,null,null,null,null,null,null,null,null,null,null,null,null,null,null,null,null,null,235,"河内小阪停車場線",110,3,"一般府道",268,1,"現道"]
[null,null,null,null,null,null,null,null,null,null,null,null,null,null,null,null,null,null,null,null,null,null,null,null,null,null,null,null,null,null,null,null,null,null,null,null,null,null,null,null,null,null,236,"枚岡停車場線",111,3,"一般府道",269,1,"現道"]
[null,null,null,null,null,null,null,null,null,null,null,null,null,null,null,null,null,null,null,null,null,null,null,null,null,null,null,null,null,null,null,null,null,null,null,null,null,null,null,null,null,null,237,"近鉄八尾停車場線",112,3,"一般府道",270,1,"現道"]
[null,null,null,null,null,null,null,null,null,null,null,null,null,null,null,null,null,null,null,null,null,null,null,null,null,null,null,null,null,null,null,null,null,null,null,null,null,null,null,null,null,null,238,"東高安停車場線",113,3,"一般府道",271,1,"現道"]
[null,null,null,null,null,null,null,null,null,null,null,null,null,null,null,null,null,null,null,null,null,null,null,null,null,null,null,null,null,null,null,null,null,null,null,null,null,null,null,null,null,null,239,"八尾停車場線",114,3,"一般府道",272,1,"現道"]
[null,null,null,null,null,null,null,null,null,null,null,null,null,null,null,null,null,null,null,null,null,null,null,null,null,null,null,null,null,null,null,null,null,null,null,null,null,null,null,null,null,null,240,"柏原停車場線",115,3,"一般府道",273,1,"現道"]
[null,null,null,null,null,null,null,null,null,null,null,null,null,null,null,null,null,null,null,null,null,null,null,null,null,null,null,null,null,null,null,null,null,null,null,null,null,null,null,null,null,null,241,"柏原停車場大県線",116,3,"一般府道",274,1,"現道"]
[null,null,null,null,null,null,null,null,null,null,null,null,null,null,null,null,null,null,null,null,null,null,null,null,null,null,null,null,null,null,null,null,null,null,null,null,null,null,null,null,null,null,242,"道明寺停車場線",117,3,"一般府道",275,1,"現道"]
[null,null,null,null,null,null,null,null,null,null,null,null,null,null,null,null,null,null,null,null,null,null,null,null,null,null,null,null,null,null,null,null,null,null,null,null,null,null,null,null,null,null,243,"東岸和田停車場線",118,3,"一般府道",280,1,"現道"]
[null,null,null,null,null,null,null,null,null,null,null,null,null,null,null,null,null,null,null,null,null,null,null,null,null,null,null,null,null,null,null,null,null,null,null,null,null,null,null,null,null,null,244,"東貝塚停車場線",119,3,"一般府道",281,1,"現道"]
[null,null,null,null,null,null,null,null,null,null,null,null,null,null,null,null,null,null,null,null,null,null,null,null,null,null,null,null,null,null,null,null,null,null,null,null,null,null,null,null,null,null,245,"和泉橋本停車場線",120,3,"一般府道",282,1,"現道"]
[null,null,null,null,null,null,null,null,null,null,null,null,null,null,null,null,null,null,null,null,null,null,null,null,null,null,null,null,null,null,null,null,null,null,null,null,null,null,null,null,null,null,246,"熊取停車場線",121,3,"一般府道",283,1,"現道"]
[null,null,null,null,null,null,null,null,null,null,null,null,null,null,null,null,null,null,null,null,null,null,null,null,null,null,null,null,null,null,null,null,null,null,null,null,null,null,null,null,null,null,247,"和泉砂川停車場線",122,3,"一般府道",284,1,"現道"]
[null,null,null,null,null,null,null,null,null,null,null,null,null,null,null,null,null,null,null,null,null,null,null,null,null,null,null,null,null,null,null,null,null,null,null,null,null,null,null,null,null,null,248,"石津川停車場線",123,3,"一般府道",287,1,"現道"]
[null,null,null,null,null,null,null,null,null,null,null,null,null,null,null,null,null,null,null,null,null,null,null,null,null,null,null,null,null,null,null,null,null,null,null,null,null,null,null,null,null,null,249,"浜寺公園停車場線",124,3,"一般府道",288,1,"現道"]
[null,null,null,null,null,null,null,null,null,null,null,null,null,null,null,null,null,null,null,null,null,null,null,null,null,null,null,null,null,null,null,null,null,null,null,null,null,null,null,null,null,null,250,"羽衣停車場線",125,3,"一般府道",289,1,"現道"]
[null,null,null,null,null,null,null,null,null,null,null,null,null,null,null,null,null,null,null,null,null,null,null,null,null,null,null,null,null,null,null,null,null,null,null,null,null,null,null,null,null,null,251,"高石停車場線",126,3,"一般府道",290,1,"現道"]
[null,null,null,null,null,null,null,null,null,null,null,null,null,null,null,null,null,null,null,null,null,null,null,null,null,null,null,null,null,null,null,null,null,null,null,null,null,null,null,null,null,null,252,"和泉大宮停車場線",127,3,"一般府道",292,1,"現道"]
[null,null,null,null,null,null,null,null,null,null,null,null,null,null,null,null,null,null,null,null,null,null,null,null,null,null,null,null,null,null,null,null,null,null,null,null,null,null,null,null,null,null,253,"貝塚停車場線",128,3,"一般府道",294,1,"現道"]
[null,null,null,null,null,null,null,null,null,null,null,null,null,null,null,null,null,null,null,null,null,null,null,null,null,null,null,null,null,null,null,null,null,null,null,null,null,null,null,null,null,null,254,"泉佐野停車場線",129,3,"一般府道",297,1,"現道"]
[null,null,null,null,null,null,null,null,null,null,null,null,null,null,null,null,null,null,null,null,null,null,null,null,null,null,null,null,null,null,null,null,null,null,null,null,null,null,null,null,null,null,255,"岡田浦停車場線",130,3,"一般府道",298,1,"現道"]
[null,null,null,null,null,null,null,null,null,null,null,null,null,null,null,null,null,null,null,null,null,null,null,null,null,null,null,null,null,null,null,null,null,null,null,null,null,null,null,null,null,null,256,"樽井停車場樽井線",131,3,"一般府道",299,1,"現道"]
[null,null,null,null,null,null,null,null,null,null,null,null,null,null,null,null,null,null,null,null,null,null,null,null,null,null,null,null,null,null,null,null,null,null,null,null,null,null,null,null,null,null,257,"尾崎停車場線",132,3,"一般府道",300,1,"現道"]
[null,null,null,null,null,null,null,null,null,null,null,null,null,null,null,null,null,null,null,null,null,null,null,null,null,null,null,null,null,null,null,null,null,null,null,null,null,null,null,null,null,null,258,"淡輪停車場線",133,3,"一般府道",301,1,"現道"]
[null,null,null,null,null,null,null,null,null,null,null,null,null,null,null,null,null,null,null,null,null,null,null,null,null,null,null,null,null,null,null,null,null,null,null,null,null,null,null,null,null,null,259,"桜井駅跡線",134,3,"一般府道",303,1,"現道"]
[null,null,null,null,null,null,null,null,null,null,null,null,null,null,null,null,null,null,null,null,null,null,null,null,null,null,null,null,null,null,null,null,null,null,null,null,null,null,null,null,null,null,260,"天王亀岡線",135,3,"一般府道",304,1,"現道"]
[null,null,null,null,null,null,null,null,null,null,null,null,null,null,null,null,null,null,null,null,null,null,null,null,null,null,null,null,null,null,null,null,null,null,null,null,null,null,null,null,null,null,261,"島能勢線",136,3,"一般府道",305,1,"現道"]
[null,null,null,null,null,null,null,null,null,null,null,null,null,null,null,null,null,null,null,null,null,null,null,null,null,null,null,null,null,null,null,null,null,null,null,null,null,null,null,null,null,null,262,"宿野下田線",137,3,"一般府道",307,1,"現道"]
[null,null,null,null,null,null,null,null,null,null,null,null,null,null,null,null,null,null,null,null,null,null,null,null,null,null,null,null,null,null,null,null,null,null,null,null,null,null,null,null,null,null,264,"野間出野一庫線",138,3,"一般府道",308,1,"現道"]
[null,null,null,null,null,null,null,null,null,null,null,null,null,null,null,null,null,null,null,null,null,null,null,null,null,null,null,null,null,null,null,null,null,null,null,null,null,null,null,null,null,null,265,"吉野下田尻線",139,3,"一般府道",309,1,"現道"]
[null,null,null,null,null,null,null,null,null,null,null,null,null,null,null,null,null,null,null,null,null,null,null,null,null,null,null,null,null,null,null,null,null,null,null,null,null,null,null,null,null,null,266,"国崎野間口線",140,3,"一般府道",310,1,"現道"]
[null,null,null,null,null,null,null,null,null,null,null,null,null,null,null,null,null,null,null,null,null,null,null,null,null,null,null,null,null,null,null,null,null,null,null,null,null,null,null,null,null,null,268,"庄本牛立線",141,3,"一般府道",311,1,"現道"]
[null,null,null,null,null,null,null,null,null,null,null,null,null,null,null,null,null,null,null,null,null,null,null,null,null,null,null,null,null,null,null,null,null,null,null,null,null,null,null,null,null,null,269,"余野車作線",142,3,"一般府道",312,1,"現道"]
[null,null,null,null,null,null,null,null,null,null,null,null,null,null,null,null,null,null,null,null,null,null,null,null,null,null,null,null,null,null,null,null,null,null,null,null,null,null,null,null,null,null,270,"熊野大阪線",143,3,"一般府道",313,1,"現道"]
[null,null,null,null,null,null,null,null,null,null,null,null,null,null,null,null,null,null,null,null,null,null,null,null,null,null,null,null,null,null,null,null,null,null,null,null,null,null,null,null,null,null,271,"忍頂寺福井線",144,3,"一般府道",314,1,"現道"]
[null,null,null,null,null,null,null,null,null,null,null,null,null,null,null,null,null,null,null,null,null,null,null,null,null,null,null,null,null,null,null,null,null,null,null,null,null,null,null,null,null,null,272,"萩谷西五百住線",145,3,"一般府道",315,1,"現道"]
[null,null,null,null,null,null,null,null,null,null,null,null,null,null,null,null,null,null,null,null,null,null,null,null,null,null,null,null,null,null,null,null,null,null,null,null,null,null,null,null,null,null,273,"柳谷島本線",146,3,"一般府道",316,1,"現道"]
[null,null,null,null,null,null,null,null,null,null,null,null,null,null,null,null,null,null,null,null,null,null,null,null,null,null,null,null,null,null,null,null,null,null,null,null,null,null,null,null,null,null,274,"正雀一津屋線",147,3,"一般府道",317,1,"現道"]
[null,null,null,null,null,null,null,null,null,null,null,null,null,null,null,null,null,null,null,null,null,null,null,null,null,null,null,null,null,null,null,null,null,null,null,null,null,null,null,null,null,null,275,"沢良宜東千里丘停車場線",148,3,"一般府道",319,1,"現道"]
[null,null,null,null,null,null,null,null,null,null,null,null,null,null,null,null,null,null,null,null,null,null,null,null,null,null,null,null,null,null,null,null,null,null,null,null,null,null,null,null,null,null,276,"高槻茨木線",149,3,"一般府道",321,1,"現道"]
[null,null,null,null,null,null,null,null,null,null,null,null,null,null,null,null,null,null,null,null,null,null,null,null,null,null,null,null,null,null,null,null,null,null,null,null,null,null,null,null,null,null,277,"鳥飼八丁富田線",150,3,"一般府道",322,1,"現道"]
[null,null,null,null,null,null,null,null,null,null,null,null,null,null,null,null,null,null,null,null,null,null,null,null,null,null,null,null,null,null,null,null,null,null,null,null,null,null,null,null,null,null,278,"三島江茨木線",151,3,"一般府道",323,1,"現道"]
[null,null,null,null,null,null,null,null,null,null,null,null,null,null,null,null,null,null,null,null,null,null,null,null,null,null,null,null,null,null,null,null,null,null,null,null,null,null,null,null,null,null,279,"安満前島線",152,3,"一般府道",325,1,"現道"]
[null,null,null,null,null,null,null,null,null,null,null,null,null,null,null,null,null,null,null,null,null,null,null,null,null,null,null,null,null,null,null,null,null,null,null,null,null,null,null,null,null,null,280,"金田門真停車場線",153,3,"一般府道",326,1,"現道"]
[null,null,null,null,null,null,null,null,null,null,null,null,null,null,null,null,null,null,null,null,null,null,null,null,null,null,null,null,null,null,null,null,null,null,null,null,null,null,null,null,null,null,281,"木屋門真線",154,3,"一般府道",327,1,"現道"]
[null,null,null,null,null,null,null,null,null,null,null,null,null,null,null,null,null,null,null,null,null,null,null,null,null,null,null,null,null,null,null,null,null,null,null,null,null,null,null,null,null,null,282,"杉田口禁野線",155,3,"一般府道",329,1,"現道"]
[null,null,null,null,null,null,null,null,null,null,null,null,null,null,null,null,null,null,null,null,null,null,null,null,null,null,null,null,null,null,null,null,null,null,null,null,null,null,null,null,null,null,283,"長尾八幡線",156,3,"一般府道",330,1,"現道"]
[null,null,null,null,null,null,null,null,null,null,null,null,null,null,null,null,null,null,null,null,null,null,null,null,null,null,null,null,null,null,null,null,null,null,null,null,null,null,null,null,null,null,284,"（旧）長尾八幡線",156,3,"一般府道",330,2,"旧道"]
[null,null,null,null,null,null,null,null,null,null,null,null,null,null,null,null,null,null,null,null,null,null,null,null,null,null,null,null,null,null,null,null,null,null,null,null,null,null,null,null,null,null,285,"（新）長尾八幡線",156,3,"一般府道",330,3,"新道"]
[null,null,null,null,null,null,null,null,null,null,null,null,null,null,null,null,null,null,null,null,null,null,null,null,null,null,null,null,null,null,null,null,null,null,null,null,null,null,null,null,null,null,286,"私市太秦線",157,3,"一般府道",331,1,"現道"]
[null,null,null,null,null,null,null,null,null,null,null,null,null,null,null,null,null,null,null,null,null,null,null,null,null,null,null,null,null,null,null,null,null,null,null,null,null,null,null,null,null,null,287,"中垣内南田原線",158,3,"一般府道",332,1,"現道"]
[null,null,null,null,null,null,null,null,null,null,null,null,null,null,null,null,null,null,null,null,null,null,null,null,null,null,null,null,null,null,null,null,null,null,null,null,null,null,null,null,null,null,290,"山本黒谷線",159,3,"一般府道",336,1,"現道"]
[null,null,null,null,null,null,null,null,null,null,null,null,null,null,null,null,null,null,null,null,null,null,null,null,null,null,null,null,null,null,null,null,null,null,null,null,null,null,null,null,null,null,291,"柏村南本町線",160,3,"一般府道",337,1,"現道"]
[null,null,null,null,null,null,null,null,null,null,null,null,null,null,null,null,null,null,null,null,null,null,null,null,null,null,null,null,null,null,null,null,null,null,null,null,null,null,null,null,null,null,292,"本堂高井田線",161,3,"一般府道",338,1,"現道"]
[null,null,null,null,null,null,null,null,null,null,null,null,null,null,null,null,null,null,null,null,null,null,null,null,null,null,null,null,null,null,null,null,null,null,null,null,null,null,null,null,null,null,293,"大堀堺線",162,3,"一般府道",339,1,"現道"]
[null,null,null,null,null,null,null,null,null,null,null,null,null,null,null,null,null,null,null,null,null,null,null,null,null,null,null,null,null,null,null,null,null,null,null,null,null,null,null,null,null,null,294,"（旧）大堀堺線",162,3,"一般府道",339,2,"旧道"]
[null,null,null,null,null,null,null,null,null,null,null,null,null,null,null,null,null,null,null,null,null,null,null,null,null,null,null,null,null,null,null,null,null,null,null,null,null,null,null,null,null,null,295,"（新）大堀堺線",162,3,"一般府道",339,3,"新道"]
[null,null,null,null,null,null,null,null,null,null,null,null,null,null,null,null,null,null,null,null,null,null,null,null,null,null,null,null,null,null,null,null,null,null,null,null,null,null,null,null,null,null,296,"郡戸大堀線",163,3,"一般府道",340,1,"現道"]
[null,null,null,null,null,null,null,null,null,null,null,null,null,null,null,null,null,null,null,null,null,null,null,null,null,null,null,null,null,null,null,null,null,null,null,null,null,null,null,null,null,null,297,"我堂金岡線",164,3,"一般府道",341,1,"現道"]
[null,null,null,null,null,null,null,null,null,null,null,null,null,null,null,null,null,null,null,null,null,null,null,null,null,null,null,null,null,null,null,null,null,null,null,null,null,null,null,null,null,null,298,"（新）我堂金岡線",164,3,"一般府道",341,3,"新道"]
[null,null,null,null,null,null,null,null,null,null,null,null,null,null,null,null,null,null,null,null,null,null,null,null,null,null,null,null,null,null,null,null,null,null,null,null,null,null,null,null,null,null,299,"西藤井寺線",165,3,"一般府道",342,1,"現道"]
[null,null,null,null,null,null,null,null,null,null,null,null,null,null,null,null,null,null,null,null,null,null,null,null,null,null,null,null,null,null,null,null,null,null,null,null,null,null,null,null,null,null,300,"島泉伊賀線",166,3,"一般府道",343,1,"現道"]
[null,null,null,null,null,null,null,null,null,null,null,null,null,null,null,null,null,null,null,null,null,null,null,null,null,null,null,null,null,null,null,null,null,null,null,null,null,null,null,null,null,null,301,"上河内富田林線",167,3,"一般府道",344,1,"現道"]
[null,null,null,null,null,null,null,null,null,null,null,null,null,null,null,null,null,null,null,null,null,null,null,null,null,null,null,null,null,null,null,null,null,null,null,null,null,null,null,null,null,null,302,"竹内河南線",168,3,"一般府道",345,1,"現道"]
[null,null,null,null,null,null,null,null,null,null,null,null,null,null,null,null,null,null,null,null,null,null,null,null,null,null,null,null,null,null,null,null,null,null,null,null,null,null,null,null,null,null,303,"東阪三日市線",169,3,"一般府道",346,1,"現道"]
[null,null,null,null,null,null,null,null,null,null,null,null,null,null,null,null,null,null,null,null,null,null,null,null,null,null,null,null,null,null,null,null,null,null,null,null,null,null,null,null,null,null,304,"甘南備川向線",170,3,"一般府道",347,1,"現道"]
[null,null,null,null,null,null,null,null,null,null,null,null,null,null,null,null,null,null,null,null,null,null,null,null,null,null,null,null,null,null,null,null,null,null,null,null,null,null,null,null,null,null,305,"中津原寺元線",171,3,"一般府道",348,1,"現道"]
[null,null,null,null,null,null,null,null,null,null,null,null,null,null,null,null,null,null,null,null,null,null,null,null,null,null,null,null,null,null,null,null,null,null,null,null,null,null,null,null,null,null,306,"加賀田片添線",172,3,"一般府道",349,1,"現道"]
[null,null,null,null,null,null,null,null,null,null,null,null,null,null,null,null,null,null,null,null,null,null,null,null,null,null,null,null,null,null,null,null,null,null,null,null,null,null,null,null,null,null,307,"大野天野線",173,3,"一般府道",350,1,"現道"]
[null,null,null,null,null,null,null,null,null,null,null,null,null,null,null,null,null,null,null,null,null,null,null,null,null,null,null,null,null,null,null,null,null,null,null,null,null,null,null,null,null,null,308,"深井畑山宿院線",174,3,"一般府道",351,1,"現道"]
[null,null,null,null,null,null,null,null,null,null,null,null,null,null,null,null,null,null,null,null,null,null,null,null,null,null,null,null,null,null,null,null,null,null,null,null,null,null,null,null,null,null,309,"西鳳東線",175,3,"一般府道",352,1,"現道"]
[null,null,null,null,null,null,null,null,null,null,null,null,null,null,null,null,null,null,null,null,null,null,null,null,null,null,null,null,null,null,null,null,null,null,null,null,null,null,null,null,null,null,310,"信太高石線",176,3,"一般府道",353,1,"現道"]
[null,null,null,null,null,null,null,null,null,null,null,null,null,null,null,null,null,null,null,null,null,null,null,null,null,null,null,null,null,null,null,null,null,null,null,null,null,null,null,null,null,null,311,"（旧）信太高石線",176,3,"一般府道",353,2,"旧道"]
[null,null,null,null,null,null,null,null,null,null,null,null,null,null,null,null,null,null,null,null,null,null,null,null,null,null,null,null,null,null,null,null,null,null,null,null,null,null,null,null,null,null,314,"（新）信太高石線",176,3,"一般府道",353,3,"新道"]
[null,null,null,null,null,null,null,null,null,null,null,null,null,null,null,null,null,null,null,null,null,null,null,null,null,null,null,null,null,null,null,null,null,null,null,null,null,null,null,null,null,null,315,"和田福泉線",177,3,"一般府道",354,1,"現道"]
[null,null,null,null,null,null,null,null,null,null,null,null,null,null,null,null,null,null,null,null,null,null,null,null,null,null,null,null,null,null,null,null,null,null,null,null,null,null,null,null,null,null,316,"（新）和田福泉線",177,3,"一般府道",354,3,"新道"]
[null,null,null,null,null,null,null,null,null,null,null,null,null,null,null,null,null,null,null,null,null,null,null,null,null,null,null,null,null,null,null,null,null,null,null,null,null,null,null,null,null,null,317,"別所草部線",178,3,"一般府道",355,1,"現道"]
[null,null,null,null,null,null,null,null,null,null,null,null,null,null,null,null,null,null,null,null,null,null,null,null,null,null,null,null,null,null,null,null,null,null,null,null,null,null,null,null,null,null,318,"槙尾山仏並線",179,3,"一般府道",357,1,"現道"]
[null,null,null,null,null,null,null,null,null,null,null,null,null,null,null,null,null,null,null,null,null,null,null,null,null,null,null,null,null,null,null,null,null,null,null,null,null,null,null,null,null,null,320,"（新）槙尾山仏並線",179,3,"一般府道",357,3,"新道"]
[null,null,null,null,null,null,null,null,null,null,null,null,null,null,null,null,null,null,null,null,null,null,null,null,null,null,null,null,null,null,null,null,null,null,null,null,null,null,null,null,null,null,321,"父鬼和気線",180,3,"一般府道",358,1,"現道"]
[null,null,null,null,null,null,null,null,null,null,null,null,null,null,null,null,null,null,null,null,null,null,null,null,null,null,null,null,null,null,null,null,null,null,null,null,null,null,null,null,null,null,322,"三林岡山線",181,3,"一般府道",359,1,"現道"]
[null,null,null,null,null,null,null,null,null,null,null,null,null,null,null,null,null,null,null,null,null,null,null,null,null,null,null,null,null,null,null,null,null,null,null,null,null,null,null,null,null,null,323,"（旧）三林岡山線",181,3,"一般府道",359,2,"旧道"]
[null,null,null,null,null,null,null,null,null,null,null,null,null,null,null,null,null,null,null,null,null,null,null,null,null,null,null,null,null,null,null,null,null,null,null,null,null,null,null,null,null,null,324,"（新）三林岡山線",181,3,"一般府道",359,3,"新道"]
[null,null,null,null,null,null,null,null,null,null,null,null,null,null,null,null,null,null,null,null,null,null,null,null,null,null,null,null,null,null,null,null,null,null,null,null,null,null,null,null,null,null,325,"田治米忠岡線",182,3,"一般府道",360,1,"現道"]
[null,null,null,null,null,null,null,null,null,null,null,null,null,null,null,null,null,null,null,null,null,null,null,null,null,null,null,null,null,null,null,null,null,null,null,null,null,null,null,null,null,null,326,"春木大町線",183,3,"一般府道",361,1,"現道"]
[null,null,null,null,null,null,null,null,null,null,null,null,null,null,null,null,null,null,null,null,null,null,null,null,null,null,null,null,null,null,null,null,null,null,null,null,null,null,null,null,null,null,327,"（旧）春木大町線",183,3,"一般府道",361,2,"旧道"]
[null,null,null,null,null,null,null,null,null,null,null,null,null,null,null,null,null,null,null,null,null,null,null,null,null,null,null,null,null,null,null,null,null,null,null,null,null,null,null,null,null,null,328,"和気岸和田線",184,3,"一般府道",362,1,"現道"]
[null,null,null,null,null,null,null,null,null,null,null,null,null,null,null,null,null,null,null,null,null,null,null,null,null,null,null,null,null,null,null,null,null,null,null,null,null,null,null,null,null,null,331,"春木岸和田線",185,3,"一般府道",363,1,"現道"]
[null,null,null,null,null,null,null,null,null,null,null,null,null,null,null,null,null,null,null,null,null,null,null,null,null,null,null,null,null,null,null,null,null,null,null,null,null,null,null,null,null,null,332,"（旧）春木岸和田線",185,3,"一般府道",363,2,"旧道"]
[null,null,null,null,null,null,null,null,null,null,null,null,null,null,null,null,null,null,null,null,null,null,null,null,null,null,null,null,null,null,null,null,null,null,null,null,null,null,null,null,null,null,334,"（新）春木岸和田線",185,3,"一般府道",363,3,"新道"]
[null,null,null,null,null,null,null,null,null,null,null,null,null,null,null,null,null,null,null,null,null,null,null,null,null,null,null,null,null,null,null,null,null,null,null,null,null,null,null,null,null,null,335,"土丸栄線",186,3,"一般府道",366,1,"現道"]
[null,null,null,null,null,null,null,null,null,null,null,null,null,null,null,null,null,null,null,null,null,null,null,null,null,null,null,null,null,null,null,null,null,null,null,null,null,null,null,null,null,null,336,"日根野羽倉崎線",187,3,"一般府道",367,1,"現道"]
[null,null,null,null,null,null,null,null,null,null,null,null,null,null,null,null,null,null,null,null,null,null,null,null,null,null,null,null,null,null,null,null,null,null,null,null,null,null,null,null,null,null,337,"新家田尻線",188,3,"一般府道",368,3,"新道"]
[null,null,null,null,null,null,null,null,null,null,null,null,null,null,null,null,null,null,null,null,null,null,null,null,null,null,null,null,null,null,null,null,null,null,null,null,null,null,null,null,null,null,338,"大苗代岡田浦停車場線",189,3,"一般府道",369,1,"現道"]
[null,null,null,null,null,null,null,null,null,null,null,null,null,null,null,null,null,null,null,null,null,null,null,null,null,null,null,null,null,null,null,null,null,null,null,null,null,null,null,null,null,null,339,"東鳥取南海線",190,3,"一般府道",370,1,"現道"]
[null,null,null,null,null,null,null,null,null,null,null,null,null,null,null,null,null,null,null,null,null,null,null,null,null,null,null,null,null,null,null,null,null,null,null,null,null,null,null,null,null,null,340,"自然田鳥取荘停車場線",191,3,"一般府道",371,1,"現道"]
[null,null,null,null,null,null,null,null,null,null,null,null,null,null,null,null,null,null,null,null,null,null,null,null,null,null,null,null,null,null,null,null,null,null,null,null,null,null,null,null,null,null,341,"水間和泉橋本停車場線",192,3,"一般府道",372,1,"現道"]
[null,null,null,null,null,null,null,null,null,null,null,null,null,null,null,null,null,null,null,null,null,null,null,null,null,null,null,null,null,null,null,null,null,null,null,null,null,null,null,null,null,null,342,"山田上小野原線",193,3,"一般府道",374,1,"現道"]
[null,null,null,null,null,null,null,null,null,null,null,null,null,null,null,null,null,null,null,null,null,null,null,null,null,null,null,null,null,null,null,null,null,null,null,null,null,null,null,null,null,null,343,"豊中吹田線",194,3,"一般府道",375,1,"現道"]
[null,null,null,null,null,null,null,null,null,null,null,null,null,null,null,null,null,null,null,null,null,null,null,null,null,null,null,null,null,null,null,null,null,null,null,null,null,null,null,null,null,null,345,"北大日竜田線",195,3,"一般府道",376,1,"現道"]
[null,null,null,null,null,null,null,null,null,null,null,null,null,null,null,null,null,null,null,null,null,null,null,null,null,null,null,null,null,null,null,null,null,null,null,null,null,null,null,null,null,null,346,"平野守口線",196,3,"一般府道",377,1,"現道"]
[null,null,null,null,null,null,null,null,null,null,null,null,null,null,null,null,null,null,null,null,null,null,null,null,null,null,null,null,null,null,null,null,null,null,null,null,null,null,null,null,null,null,347,"大阪枚岡奈良線",197,3,"一般府道",379,1,"現道"]
[null,null,null,null,null,null,null,null,null,null,null,null,null,null,null,null,null,null,null,null,null,null,null,null,null,null,null,null,null,null,null,null,null,null,null,null,null,null,null,null,null,null,348,"余野茨木線",198,3,"一般府道",380,1,"現道"]
[null,null,null,null,null,null,null,null,null,null,null,null,null,null,null,null,null,null,null,null,null,null,null,null,null,null,null,null,null,null,null,null,null,null,null,null,null,null,null,null,null,null,349,"南千里茨木停車場線",199,3,"一般府道",386,1,"現道"]
[null,null,null,null,null,null,null,null,null,null,null,null,null,null,null,null,null,null,null,null,null,null,null,null,null,null,null,null,null,null,null,null,null,null,null,null,null,null,null,null,null,null,351,"森屋狭山線",200,3,"一般府道",390,1,"現道"]
[null,null,null,null,null,null,null,null,null,null,null,null,null,null,null,null,null,null,null,null,null,null,null,null,null,null,null,null,null,null,null,null,null,null,null,null,null,null,null,null,null,null,352,"富田林五条線",201,3,"一般府道",391,1,"現道"]
[null,null,null,null,null,null,null,null,null,null,null,null,null,null,null,null,null,null,null,null,null,null,null,null,null,null,null,null,null,null,null,null,null,null,null,null,null,null,null,null,null,null,353,"堺泉北環状線",202,3,"一般府道",397,1,"現道"]
[null,null,null,null,null,null,null,null,null,null,null,null,null,null,null,null,null,null,null,null,null,null,null,null,null,null,null,null,null,null,null,null,null,null,null,null,null,null,null,null,null,null,354,"堺阪南線",203,3,"一般府道",398,1,"現道"]
[null,null,null,null,null,null,null,null,null,null,null,null,null,null,null,null,null,null,null,null,null,null,null,null,null,null,null,null,null,null,null,null,null,null,null,null,null,null,null,null,null,null,355,"木ノ本岬線",204,3,"一般府道",400,1,"現道"]
[null,null,null,null,null,null,null,null,null,null,null,null,null,null,null,null,null,null,null,null,null,null,null,null,null,null,null,null,null,null,null,null,null,null,null,null,null,null,null,null,null,null,356,"泉佐野熊取線",205,3,"一般府道",404,1,"現道"]
[null,null,null,null,null,null,null,null,null,null,null,null,null,null,null,null,null,null,null,null,null,null,null,null,null,null,null,null,null,null,null,null,null,null,null,null,null,null,null,null,null,null,357,"和歌山阪南線",206,3,"一般府道",752,1,"現道"]
[null,null,null,null,null,null,null,null,null,null,null,null,null,null,null,null,null,null,null,null,null,null,null,null,null,null,null,null,null,null,null,null,null,null,null,null,null,null,null,null,null,null,358,"大阪吹田自転車道線",207,3,"一般府道",801,1,"現道"]
[null,null,null,null,null,null,null,null,null,null,null,null,null,null,null,null,null,null,null,null,null,null,null,null,null,null,null,null,null,null,null,null,null,null,null,null,null,null,null,null,null,null,359,"八尾河内長野自転車道線",208,3,"一般府道",802,1,"現道"]
[null,null,null,null,null,null,null,null,null,null,null,null,null,null,null,null,null,null,null,null,null,null,null,null,null,null,null,null,null,null,null,null,null,null,null,null,null,null,null,null,null,null,360,"北河内自転車道線",209,3,"一般府道",803,1,"現道"]
[null,null,null,null,null,null,null,null,null,null,null,null,null,null,null,null,null,null,null,null,null,null,null,null,null,null,null,null,null,null,null,null,null,null,null,null,null,null,null,null,null,null,361,"杉生能勢線",210,3,"一般府道",998,1,"現道"]

{"sheet":"HiddenSheet_様式-2","index":5,"n_rows":44,"n_cols":90,"rows_kept":44,"cut":false,"hidden":true,"merged":[[1,27,2,63],[1,67,2,75],[1,76,1,90],[2,76,2,90],[3,67,3,75],[3,76,3,77],[3,78,3,79],[3,80,3,81],[3,82,3,83],[3,84,3,85],[3,86,3,87],[3,88,3,90],[5,22,5,24],[5,82,5,84],[5,85,5,90],[5,68,5,69],[5,71,5,72],[5,73,5,74],[5,76,5,77],[5,79,5,80],[4,80,4,82],[4,83,4,84],[4,85,4,88],[4,89,4,90],[4,1,4,5],[4,14,4,18],[4,19,4,24],[4,25,4,27],[4,28,4,51],[4,52,4,55],[4,65,4,66],[4,76,4,79],[6,27,6,30],[6,31,6,33],[5,65,5,66],[5,25,5,27],[5,28,5,44],[5,45,5,47],[5,48,5,59],[5,60,5,61],[5,62,5,63],[6,74,6,76],[6,77,6,79],[5,1,5,3],[5,4,5,6],[5,7,5,9],[5,10,5,16],[5,17,5,21],[6,80,6,85],[6,86,6,90],[7,1,7,49],[7,50,7,90],[6,52,6,54],[6,55,6,57],[6,58,6,61],[6,62,6,65],[6,66,6,69],[6,70,6,73],[6,34,6,35],[6,36,6,39],[6,40,6,41],[6,42,6,44],[6,45,6,47],[6,48,6,51],[6,1,6,8],[6,9,6,12],[6,13,6,17],[6,18,6,21],[6,22,6,24],[6,25,6,26],[8,2,30,48],[8,51,30,89],[32,1,32,4],[32,5,32,49],[32,50,32,56],[32,57,32,58],[32,60,32,66],[32,68,32,83],[32,85,32,90],[33,22,33,49],[33,50,33,56],[33,57,33,62],[33,89,33,90],[34,1,34,4],[34,5,34,10],[34,11,34,16],[34,17,34,22],[34,23,34,49],[34,50,34,56],[33,1,33,4],[33,5,33,7],[33,9,33,10],[33,12,33,13],[33,15,33,17],[33,19,33,20],[34,57,34,62],[34,63,34,70],[34,72,34,79],[34,81,34,88],[34,89,34,90],[35,1,35,4],[35,5,43,49],[35,50,35,52],[35,53,35,56],[35,57,35,58],[35,87,35,90],[36,1,36,4],[36,50,36,52],[36,53,36,56],[36,57,36,58],[36,60,36,61],[36,62,36,63],[36,65,36,67],[36,68,36,69],[36,70,36,71],[35,60,35,61],[35,62,35,63],[35,64,35,67],[35,68,35,78],[35,79,35,81],[35,83,35,85],[36,72,36,75],[36,76,36,86],[36,87,36,90],[37,1,43,4],[37,50,39,56],[37,57,37,59],[37,60,37,67],[37,68,37,73],[37,74,37,76],[37,77,37,90],[38,57,38,59],[38,60,38,67],[38,68,38,73],[38,74,38,76],[38,77,38,90],[39,57,39,59],[39,60,39,67],[39,68,39,73],[39,74,39,76],[39,77,39,90],[43,50,43,62],[43,63,43,65],[43,66,43,90],[41,77,41,90],[42,57,42,59],[42,60,42,67],[42,68,42,73],[42,74,42,76],[42,77,42,90],[40,50,42,56],[40,57,40,59],[40,60,40,67],[40,68,40,73],[40,74,40,76],[40,77,40,90],[41,57,41,59],[41,60,41,67],[41,68,41,73],[41,74,41,76]]}
[]
[null,null,null,null,null,null,null,null,null,null,null,null,null,null,null,null,null,null,null,null,null,null,null,null,null,null,null,"様式－２　　箇所別記録表（落石・崩壊）",null,null,null,null,null,null,null,null,null,null,null,null,null,null,null,null,null,null,null,null,null,null,null,null,null,null,null,null,null,null,null,null,null,null,null,null,null,null,null,"管理機関名",null,null,null,null,null,null,null,null,"大阪府"]
[]
[null,null,null,null,null,null,null,null,null,null,null,null,null,null,null,null,null,null,null,null,null,null,null,null,null,null,null,null,null,null,null,null,null,null,null,null,null,null,null,null,null,null,null,null,null,null,null,null,null,null,null,null,null,null,null,null,null,null,null,null,null,null,null,null,null,null,null,"管理機関コード",null,null,null,null,null,null,null,null,2,null,7]
[null,"施設管理番号",null,null,null,null,null,null,null,null,{"$f":"IF(ISERROR(MATCH(T5,LIST_点検対象項目,0))=TRUE,\"\",INDEX(MASTER!AC3:AC60000,MATCH(T5,LIST_点検対象項目,0)))","v":"A"},null,null,null,"点検対象項目",null,null,null,null,"落石・崩壊",null,null,null,null,null,"路線名",null,null,null,null,null,null,null,null,null,null,null,null,null,null,null,null,null,null,null,null,null,null,null,null,null,null,"距離標（自）",null,null,null,null,null,null,null,null,null,null,null,null,"(至)",null,null,null,null,null,null,null,null,null,null,"上下線の別",null,null,null,null,null,null,"延長",null,null,null,null,null,"m"]
[null,"事業区分",null,null,null,null,null,"道路種別",null,null,null,null,null,null,null,null,null,"現道・旧道路区分",null,null,null,null,null,null,null,"所在地",null,null,null,null,null,null,null,null,null,null,null,null,null,null,null,null,null,null,null,"位置目印",null,null,null,null,null,null,null,null,null,null,null,null,null,null,"北緯",null,null,null,"度",null,null,"分",null,null,"秒","東経",null,null,null,"度",null,null,"分",null,null,"秒","測地系"]
[null,"事前通行規制区間指定",null,null,null,null,null,null,null,null,null,null,null,"規制基準等",null,null,null,null,"連続雨量",null,null,null,null,null,null,"mm",null,"時間雨量",null,null,null,null,null,null,"mm",null,"交通量",null,null,null,"平日",null,null,null,null,"台/12h",null,null,"休日",null,null,null,null,null,null,"台/12h",null,null,"ＤＩＤ区間",null,null,null,null,null,null,null,"バス路線",null,null,null,null,null,null,null,"迂回路",null,null,null,null,null,"緊急輸送道路区分"]
[null,"スケッチ・現況写真（既設対策工、位置目印との位置関係が分かるもの）",null,null,null,null,null,null,null,null,null,null,null,null,null,null,null,null,null,null,null,null,null,null,null,null,null,null,null,null,null,null,null,null,null,null,null,null,null,null,null,null,null,null,null,null,null,null,null,null,"位　置　図"]
[]
[]
[]
[]
[]
[]
[]
[]
[]
[]
[]
[]
[]
[]
[]
[]
[]
[]
[]
[]
[]
[]
[]
[]
[null,"特記事項",null,null,null,null,null,null,null,null,null,null,null,null,null,null,null,null,null,null,null,null,null,null,null,null,null,null,null,null,null,null,null,null,null,null,null,null,null,null,null,null,null,null,null,null,null,null,null,null,"被災履歴",null,null,null,null,null,null,null,null,"（",null,null,null,null,null,null,null,null,null,null,null,null,null,null,null,null,null,null,null,null,null,null,null,null,"）","（H8年度以降）"]
[null,"点検実施",null,null,null,"H",null,null,"年",null,null,"月",null,null,"日","天候：",null,null,"（",null,null,"）",null,null,null,null,null,null,null,null,null,null,null,null,null,null,null,null,null,null,null,null,null,null,null,null,null,null,null,null,"重複点検対象項目",null,null,null,null,null,null,"対応施設管理番号：",null,null,null,null,null,null,null,null,null,{"$f":"IF(ISERROR(MATCH(BL35,LIST_点検対象項目,0))=TRUE,\"\",INDEX(MASTER!AC3:AC60000,MATCH(BL35,LIST_点検対象項目,0)))","v":""},null,null,null,null,null,null,null,null,{"$f":"IF(ISERROR(MATCH(BU35,LIST_点検対象項目,0))=TRUE,\"\",INDEX(MASTER!AC3:AC60000,MATCH(BU35,LIST_点検対象項目,0)))","v":""},null,null,null,null,null,null,null,null,{"$f":"IF(ISERROR(MATCH(CD35,LIST_点検対象項目,0))=TRUE,\"\",INDEX(MASTER!AC3:AC60000,MATCH(CD35,LIST_点検対象項目,0)))","v":""}]
[null,"調査方法"]
[null,"所見",null,null,null,null,null,null,null,null,null,null,null,null,null,null,null,null,null,null,null,null,null,null,null,null,null,null,null,null,null,null,null,null,null,null,null,null,null,null,null,null,null,null,null,null,null,null,null,null,"H",null,null,"年度点検結果",null,null,null,"評点",null,"（",null,null,"点）",null,"総合評価：",null,null,null,null,null,null,null,null,null,null,null,null,null,null,"／対応：",null,null,"（",null,null,null,"）"]
[null,"（評価理由）",null,null,null,null,null,null,null,null,null,null,null,null,null,null,null,null,null,null,null,null,null,null,null,null,null,null,null,null,null,null,null,null,null,null,null,null,null,null,null,null,null,null,null,null,null,null,null,null,"H",null,null,"年度点検結果",null,null,null,"評点",null,"（","のり面",null,null,null,"点","自然斜面",null,null,40,null,"点）",null,"総合評価：",null,null,null,"防災カルテを作成し対応する"]
[null,null,null,null,null,null,null,null,null,null,null,null,null,null,null,null,null,null,null,null,null,null,null,null,null,null,null,null,null,null,null,null,null,null,null,null,null,null,null,null,null,null,null,null,null,null,null,null,null,null,"予想災害規模",null,null,null,null,null,null,"現象1：",null,null,null,null,null,null,null,null,null,null,null,null,null,null,null,null,"規模1："]
[null,null,null,null,null,null,null,null,null,null,null,null,null,null,null,null,null,null,null,null,null,null,null,null,null,null,null,null,null,null,null,null,null,null,null,null,null,null,null,null,null,null,null,null,null,null,null,null,null,null,null,null,null,null,null,null,null,"現象2：",null,null,null,null,null,null,null,null,null,null,null,null,null,null,null,null,"規模2："]
[null,null,null,null,null,null,null,null,null,null,null,null,null,null,null,null,null,null,null,null,null,null,null,null,null,null,null,null,null,null,null,null,null,null,null,null,null,null,null,null,null,null,null,null,null,null,null,null,null,null,null,null,null,null,null,null,null,"現象3：",null,null,null,null,null,null,null,null,null,null,null,null,null,null,null,null,"規模3："]
[null,null,null,null,null,null,null,null,null,null,null,null,null,null,null,null,null,null,null,null,null,null,null,null,null,null,null,null,null,null,null,null,null,null,null,null,null,null,null,null,null,null,null,null,null,null,null,null,null,null,"想定対策工",null,null,null,null,null,null,"工種1：",null,null,null,null,null,null,null,null,null,null,null,null,null,null,null,null,"その他1："]
[null,null,null,null,null,null,null,null,null,null,null,null,null,null,null,null,null,null,null,null,null,null,null,null,null,null,null,null,null,null,null,null,null,null,null,null,null,null,null,null,null,null,null,null,null,null,null,null,null,null,null,null,null,null,null,null,null,"工種2：",null,null,null,null,null,null,null,null,null,null,null,null,null,null,null,null,"その他2："]
[null,null,null,null,null,null,null,null,null,null,null,null,null,null,null,null,null,null,null,null,null,null,null,null,null,null,null,null,null,null,null,null,null,null,null,null,null,null,null,null,null,null,null,null,null,null,null,null,null,null,null,null,null,null,null,null,null,"工種3：",null,null,null,null,null,null,null,null,null,null,null,null,null,null,null,null,"その他3："]
[null,null,null,null,null,null,null,null,null,null,null,null,null,null,null,null,null,null,null,null,null,null,null,null,null,null,null,null,null,null,null,null,null,null,null,null,null,null,null,null,null,null,null,null,null,null,null,null,null,null,"地震時の安定性（　落石　・　崩壊のみ　）：",null,null,null,null,null,null,null,null,null,null,null,null,"-"]